Workbook

Sheet PORTADA
C57: RangeR1
C61: 1107200
D62: 1107200
G71: 9632589
AM112: Len@range(a2)
N126: Range(1)
L199: Len@25
M275: LEN#22
N276: LEN#22
P325: LEN&1526
Q326: LEN&1526

Sheet MENU (hidden)
B6: DESCRIPCIÓN | C6: NOMBRE DE LA HOJA
B7: Importar XML emitidos (ingreso, egreso) | C7: CFDIE
B8: Importar XML emitidos con complemento de pago | C8: RPAGOSE
B9: Importar XMLrecibidos (ingreso, egreso) | C9: CFDIR
B10: Importar XML recibidos con complemento de pago | C10: RPAGOSR
B11: Visor de CFDI emitidos y recibidos | C11: VISOR
B12: Determinación del IVA con base en los CFDI | C12: IVA
B13: Registro y control del saldo a favor de IVA | C13: SFAVOR
B14: Control acreditamiento de IVA del saldo a favor | C14: ACREDITA
B15: Subtipos de saldo a favor | C15: GENERAL

Sheet CFDIE (hidden)
A1: Hoja para importar los XML emitidos por la empresa (excepto complemento de pagos y nómina)
T3: Información en caso de factura global
A4: Fecha de emisión | B4: Tipo de comprobante | C4: Tipo de comprobante del catálogo del SAT | D4: Exportación | E4: Clave de exportación catálogo del SAT | F4: Serie | G4: Folio | H4: Folio fiscal | I4: RFC emisor | J4: Emisor | K4: Régimen fiscal | L4: Tipo de régimen catálogo del SAT | M4: RFC receptor | N4: Receptor | O4: Régimen fiscal | P4: Tipo de régimen catálogo del SAT | Q4: Domicilio fiscal receptor | R4: Uso del CFDI | S4: Uso del CFDI del catálogo del SAT | T4: Periodicidad | U4: Descripción de la clave del catálogo del SAT | V4: Meses | W4: Descripción de la clave del catálogo del SAT | X4: Año | Y4: Clave producto/servicio SAT | Z4: Descripción de la clave del catálogo del SAT | AA4: Palabras similares | AB4: Clave unidad de medida | AC4: Unidad de medida del catálogo del SAT | AD4: Unidad | AE4: Cantidad | AF4: Descripción | AG4: Valor unitario | AH4: Importe | AI4: Descuento | AJ4: Objeto del impuesto | AK4: Tipo de objeto del impuesto catálogo del SAT | AL4: Base para IEPS | AM4: Tipo factor | AN4: Tasa o cuota | AO4: Total IEPS trasladado del comprobante | AP4: Base para IVA | AQ4: Tipo factor | AR4: Tasa o cuota | AS4: Total IVA trasladado del comprobante | AT4: Base retención ISR | AU4: Tipo factor | AV4: Tasa o cuota | AW4: Retención de ISR | AX4: Base retención IVA | AY4: Tipo factor | AZ4: Tasa o cuota | BA4: Retención IVA | BB4: Total del comprobante | BC4: Tipo de relación | BD4: Tipo de relación del catálogo del SAT | BE4: UUID relación | BF4: Forma de pago | BG4: Forma de pago del catálogo del SAT | BH4: Método de pago | BI4: Método de pago catálogo del SAT | BJ4: Moneda | BK4: Moneda del catálogo del SAT | BL4: Tipo de cambio | BM4: No. de pedimento | BN4: Cuenta predial | BO4: Fecha de cancelación | BP4: No. de complementos de pago | BQ4: Importe pagado | BR4: Saldo | BS4: Ruta del archivo | BT4: Operación convertida a moneda nacional | BU4: Impuestos locales

Sheet RPAGOSE (hidden)
B2: Hoja para importar los XML emitidos con el complemento de recepción de pagos
V5: Complemento de recepción de pagos
J6: Emisor | M6: Receptor | P6: Campos generales CFDI | AG6: Solo que el pago se reciba en SPEI | AK6: Documentos que se cobran | AU6: Timbre fiscal del complemento de recepción de pagos | BG6: Retenciones | BP6: Impuestos trasladados | BT6: Impuestos retenidos
B7: Fecha de emisión | C7: Folio | D7: Serie | E7: Subtotal | F7: Moneda | G7: Total | H7: Tipo de comprobante | I7: Lugar Expedicion | J7: Rfc | K7: Nombre | L7: Régimen fiscal | M7: Rfc | N7: Nombre | O7: Uso del CFDI | P7: ClaveProdServ | Q7: Cantidad | R7: Unidad | S7: Descripcion | T7: ValorUnitario | U7: Importe | V7: Fecha de pago | W7: Forma de pago | X7: MonedaP | Y7: TipoCambioP | Z7: Monto | AA7: NumOperacion | AB7: RfcEmisorCtaOrd | AC7: NomBancoOrdExt | AD7: CtaOrdenante | AE7: RfcEmisorCtaBen | AF7: CtaBeneficiario | AG7: TipoCadPago | AH7: CertPago | AI7: CadPago | AJ7: SelloPago | AK7: IdDocumento | AL7: Serie | AM7: Folio | AN7: MonedaDR | AO7: TipoCambioDR | AP7: MetodoDePagoDR | AQ7: NumParcialidad | AR7: ImpSaldoAnt | AS7: ImpPagado | AT7: ImpSaldoInsoluto | AU7: Fecha de timbrado | AV7: UUID | AW7: Total factura | AX7: Importe cobrado | AY7: Factor de pago | AZ7: Base IVA al 16% | BA7: IVA al 16% | BB7: Base IVA al 8% | BC7: IVA al 8% | BD7: Base IVA al 0% | BE7: Base IVA exento | BF7: IEPS | BG7: Base retención ISR | BH7: Retención ISR | BI7: Base retención IVA | BJ7: IVA | BK7: Ruta en donde se encuentra el archivo | BL7: Fecha de cancelación | BM7: Fecha de factura | BN7: Importe pagado | BO7: Objeto de impuestos DR | BP7: Base IEPS | BQ7: IEPS | BR7: Base IVA | BS7: IVA | BT7: Base ISR | BU7: ISR | BV7: Base IVA | BW7: IVA | BX7: Base para ISR | BY7: Impuestos locales | BZ7: Uso del CFDI

Sheet CFDIR (hidden)
A2: Hoja para importar los XML recibidos por la empresa (excepto complemento de pagos y nómina)
T3: Información en caso de factura global
A4: Fecha de emisión | B4: Tipo de comprobante | C4: Tipo de comprobante del catálogo del SAT | D4: Exportación | E4: Clave de exportación catálogo del SAT | F4: Serie | G4: Folio | H4: Folio fiscal | I4: RFC emisor | J4: Emisor | K4: Régimen fiscal | L4: Tipo de régimen catálogo del SAT | M4: RFC receptor | N4: Receptor | O4: Régimen fiscal | P4: Tipo de régimen catálogo del SAT | Q4: Domicilio fiscal receptor | R4: Uso del CFDI | S4: Uso del CFDI del catálogo del SAT | T4: Periodicidad | U4: Descripción de la clave del catálogo del SAT | V4: Meses | W4: Descripción de la clave del catálogo del SAT | X4: Año | Y4: Clave producto/servicio SAT | Z4: Descripción de la clave del catálogo del SAT | AA4: Palabras similares | AB4: Clave unidad de medida | AC4: Unidad de medida del catálogo del SAT | AD4: Unidad | AE4: Cantidad | AF4: Descripción | AG4: Valor unitario | AH4: Importe | AI4: Descuento | AJ4: Objeto del impuesto | AK4: Tipo de objeto del impuesto catálogo del SAT | AL4: Base para IEPS | AM4: Tipo factor | AN4: Tasa o cuota | AO4: Total IEPS trasladado del comprobante | AP4: Base para IVA | AQ4: Tipo factor | AR4: Tasa o cuota | AS4: Total IVA trasladado del comprobante | AT4: Base retención ISR | AU4: Tipo factor | AV4: Tasa o cuota | AW4: Retención de ISR | AX4: Base retención IVA | AY4: Tipo factor | AZ4: Tasa o cuota | BA4: Retención IVA | BB4: Total del comprobante | BC4: Tipo de relación | BD4: Tipo de relación del catálogo del SAT | BE4: UUID relación | BF4: Forma de pago | BG4: Forma de pago del catálogo del SAT | BH4: Método de pago | BI4: Método de pago catálogo del SAT | BJ4: Moneda | BK4: Moneda del catálogo del SAT | BL4: Tipo de cambio | BM4: No. de pedimento | BN4: Cuenta predial | BO4: Fecha de cancelación | BP4: No. de complementos de pago | BQ4: Importe pagado | BR4: Saldo | BS4: Ruta del archivo | BT4: Operación convertida a moneda nacional | BU4: Impuestos locales

Sheet RPAGOSR (hidden)
B2: Hoja para importar los XML recibidos con el complemento de recepción de pagos
V5: Complemento de recepción de pagos
J6: Emisor | M6: Receptor | P6: Campos generales CFDI | AG6: Solo que el pago se reciba en SPEI | AK6: Documentos que se cobran | AU6: Timbre fiscal del complemento de recepción de pagos | BG6: Retenciones | BP6: Impuestos trasladados | BT6: Impuestos retenidos
B7: Fecha de emisión | C7: Folio | D7: Serie | E7: Subtotal | F7: Moneda | G7: Total | H7: Tipo de comprobante | I7: Lugar Expedicion | J7: Rfc | K7: Nombre | L7: Régimen fiscal | M7: Rfc | N7: Nombre | O7: Uso del CFDI | P7: ClaveProdServ | Q7: Cantidad | R7: Unidad | S7: Descripcion | T7: ValorUnitario | U7: Importe | V7: Fecha de pago | W7: Forma de pago | X7: MonedaP | Y7: TipoCambioP | Z7: Monto | AA7: NumOperacion | AB7: RfcEmisorCtaOrd | AC7: NomBancoOrdExt | AD7: CtaOrdenante | AE7: RfcEmisorCtaBen | AF7: CtaBeneficiario | AG7: TipoCadPago | AH7: CertPago | AI7: CadPago | AJ7: SelloPago | AK7: IdDocumento | AL7: Serie | AM7: Folio | AN7: MonedaDR | AO7: TipoCambioDR | AP7: MetodoDePagoDR | AQ7: NumParcialidad | AR7: ImpSaldoAnt | AS7: ImpPagado | AT7: ImpSaldoInsoluto | AU7: Fecha de timbrado | AV7: UUID | AW7: Total factura | AX7: Importe cobrado | AY7: Factor de pago | AZ7: Base IVA al 16% | BA7: IVA al 16% | BB7: Base IVA al 8% | BC7: IVA al 8% | BD7: Base IVA al 0% | BE7: Base IVA exento | BF7: IEPS | BG7: Base retención ISR | BH7: Retención ISR | BI7: Base retención IVA | BJ7: IVA | BK7: Ruta en donde se encuentra el archivo | BL7: Fecha de cancelación | BM7: Fecha de factura | BN7: Importe pagado | BO7: Objeto de impuestos DR | BP7: Base IEPS | BQ7: IEPS | BR7: Base IVA | BS7: IVA | BT7: Base ISR | BU7: ISR | BV7: Base IVA | BW7: IVA | BX7: Base para ISR | BY7: Impuestos locales | BZ7: Uso del CFDI

Sheet VISOR (hidden)
B4: Fecha inicial
B5: Fecha final
B6: Tipo de CFDI
B7: Tipo de comprobante
B8: =IFERROR(IF(OR(C7="I = Ingreso",C7="E = Egreso"),"¿Con método de pago?",""),"") -> 
B11: =IFERROR("Concentrado de CFDI emitidos de tipo "&MID($C$7,5,LEN($C$7)-4),"") ->  | L11: Impuestos trasladados
J12: Impuestos retenidos | L12: IVA | T12: IEPS
E13: Número de facturas | G13: Subtotal | H13: Descuento | I13: Subtotal - Descuento | J13: ISR | K13: IVA | L13: Base | R13: Impuesto | T13: Base | U13: Impuesto
B14: c_FormaPago | C14: Descripción | D14: Bancarizado | E14: Canceladas | F14: Vigentes | L14: PODEBI | M14: No objeto | N14: Exento | O14: 0 | P14: 0.08 | Q14: 0.16 | R14: 0.08 | S14: 0.16
B15: 1 | C15: Efectivo | D15: No
B16: 2 | C16: Cheque nominativo | D16: Sí
B17: 3 | C17: Transferencia electrónica de fondos | D17: Sí
B18: 4 | C18: Tarjeta de crédito | D18: Sí
B19: 5 | C19: Monedero electrónico | D19: Sí
B20: 6 | C20: Dinero electrónico | D20: Sí
B21: 8 | C21: Vales de despensa | D21: No
B22: 12 | C22: Dación en pago | D22: No
B23: 13 | C23: Pago por subrogación | D23: No
B24: 14 | C24: Pago por consignación | D24: No
B25: 15 | C25: Condonación | D25: No
B26: 17 | C26: Compensación | D26: No
B27: 23 | C27: Novación | D27: No
B28: 24 | C28: Confusión | D28: No
B29: 25 | C29: Remisión de deuda | D29: No
B30: 26 | C30: Prescripción o caducidad | D30: No
B31: 27 | C31: A satisfacción del acreedor | D31: No
B32: 28 | C32: Tarjeta de débito | D32: Sí
B33: 29 | C33: Tarjeta de servicios | D33: Sí
B34: 30 | C34: Aplicación de anticipos | D34: No
B35: 31 | C35: Intermediario pagos | D35: No
B36: 99 | C36: Por definir | D36: Opcional
D38: Totales
B42: =IFERROR("Concentrado de CFDI emitidos de tipo "&MID($C$7,5,LEN($C$7)-4)&" con clave de uso G01","") ->  | L42: Impuestos trasladados
J43: Impuestos retenidos | L43: IVA | T43: IEPS
E44: Número de facturas | G44: Subtotal | H44: Descuento | I44: Subtotal - Descuento | J44: ISR | K44: IVA | L44: Base | R44: Impuesto | T44: Base | U44: Impuesto
B45: c_FormaPago | C45: Descripción | D45: Bancarizado | E45: Canceladas | F45: Vigentes | L45: PODEBI | M45: No objeto | N45: Exento | O45: 0 | P45: 0.08 | Q45: 0.16 | R45: 0.08 | S45: 0.16
B46: 1 | C46: Efectivo | D46: No
B47: 2 | C47: Cheque nominativo | D47: Sí
B48: 3 | C48: Transferencia electrónica de fondos | D48: Sí
B49: 4 | C49: Tarjeta de crédito | D49: Sí
B50: 5 | C50: Monedero electrónico | D50: Sí
B51: 6 | C51: Dinero electrónico | D51: Sí
B52: 8 | C52: Vales de despensa | D52: No
B53: 12 | C53: Dación en pago | D53: No
B54: 13 | C54: Pago por subrogación | D54: No
B55: 14 | C55: Pago por consignación | D55: No
B56: 15 | C56: Condonación | D56: No
B57: 17 | C57: Compensación | D57: No
B58: 23 | C58: Novación | D58: No
B59: 24 | C59: Confusión | D59: No
B60: 25 | C60: Remisión de deuda | D60: No
B61: 26 | C61: Prescripción o caducidad | D61: No
B62: 27 | C62: A satisfacción del acreedor | D62: No
B63: 28 | C63: Tarjeta de débito | D63: Sí
B64: 29 | C64: Tarjeta de servicios | D64: Sí
B65: 30
B66: 31
B67: 99 | C67: Por definir | D67: Opcional
D69: Totales
B73: =IFERROR("Concentrado de CFDI emitidos de tipo "&MID($C$7,5,LEN($C$7)-4)&" con clave de uso G03","") ->  | L73: Impuestos trasladados
J74: Impuestos retenidos | L74: IVA | T74: IEPS
E75: Número de facturas | G75: Subtotal | H75: Descuento | I75: Subtotal - Descuento | J75: ISR | K75: IVA | L75: Base | R75: Impuesto | T75: Base | U75: Impuesto
B76: c_FormaPago | C76: Descripción | D76: Bancarizado | E76: Canceladas | F76: Vigentes | L76: PODEBI | M76: No objeto | N76: Exento | O76: 0 | P76: 0.08 | Q76: 0.16 | R76: 0.08 | S76: 0.16
B77: 1 | C77: Efectivo | D77: No
B78: 2 | C78: Cheque nominativo | D78: Sí
B79: 3 | C79: Transferencia electrónica de fondos | D79: Sí
B80: 4 | C80: Tarjeta de crédito | D80: Sí
B81: 5 | C81: Monedero electrónico | D81: Sí
B82: 6 | C82: Dinero electrónico | D82: Sí
B83: 8 | C83: Vales de despensa | D83: No
B84: 12 | C84: Dación en pago | D84: No
B85: 13 | C85: Pago por subrogación | D85: No
B86: 14 | C86: Pago por consignación | D86: No
B87: 15 | C87: Condonación | D87: No
B88: 17 | C88: Compensación | D88: No
B89: 23 | C89: Novación | D89: No
B90: 24 | C90: Confusión | D90: No
B91: 25 | C91: Remisión de deuda | D91: No
B92: 26 | C92: Prescripción o caducidad | D92: No
B93: 27 | C93: A satisfacción del acreedor | D93: No
B94: 28 | C94: Tarjeta de débito | D94: Sí
B95: 29 | C95: Tarjeta de servicios | D95: Sí
B96: 30 | C96: Aplicación de anticipos | D96: No
B97: 31 | C97: Intermediario pagos | D97: No
B98: 99 | C98: Por definir | D98: Opcional
D100: Totales
B104: =IFERROR("Concentrado de CFDI emitidos de tipo "&MID($C$7,5,LEN($C$7)-4)&" con clave de uso I","") ->  | L104: Impuestos trasladados
J105: Impuestos retenidos | L105: IVA | T105: IEPS
E106: Número de facturas | G106: Subtotal | H106: Descuento | I106: Subtotal - Descuento | J106: ISR | K106: IVA | L106: Base | R106: Impuesto | T106: Base | U106: Impuesto
B107: c_FormaPago | C107: Descripción | D107: Bancarizado | E107: Canceladas | F107: Vigentes | L107: PODEBI | M107: No objeto | N107: Exento | O107: 0 | P107: 0.08 | Q107: 0.16 | R107: 0.08 | S107: 0.16
B108: 1 | C108: Efectivo | D108: No
B109: 2 | C109: Cheque nominativo | D109: Sí
B110: 3 | C110: Transferencia electrónica de fondos | D110: Sí
B111: 4 | C111: Tarjeta de crédito | D111: Sí
B112: 5 | C112: Monedero electrónico | D112: Sí
B113: 6 | C113: Dinero electrónico | D113: Sí
B114: 8 | C114: Vales de despensa | D114: No
B115: 12 | C115: Dación en pago | D115: No
B116: 13 | C116: Pago por subrogación | D116: No
B117: 14 | C117: Pago por consignación | D117: No
B118: 15 | C118: Condonación | D118: No
B119: 17 | C119: Compensación | D119: No
B120: 23 | C120: Novación | D120: No
B121: 24 | C121: Confusión | D121: No
B122: 25 | C122: Remisión de deuda | D122: No
B123: 26 | C123: Prescripción o caducidad | D123: No
B124: 27 | C124: A satisfacción del acreedor | D124: No
B125: 28 | C125: Tarjeta de débito | D125: Sí
B126: 29 | C126: Tarjeta de servicios | D126: Sí
B127: 30 | C127: Aplicación de anticipos | D127: No
B128: 31 | C128: Intermediario pagos | D128: No
B129: 99 | C129: Por definir | D129: Opcional
D131: Totales
B135: =IFERROR("Concentrado de CFDI emitidos de tipo "&MID($C$7,5,LEN($C$7)-4)&" con clave de uso S01","") ->  | L135: Impuestos trasladados
J136: Impuestos retenidos | L136: IVA | T136: IEPS
E137: Número de facturas | G137: Subtotal | H137: Descuento | I137: Subtotal - Descuento | J137: ISR | K137: IVA | L137: Base | R137: Impuesto | T137: Base | U137: Impuesto
B138: c_FormaPago | C138: Descripción | D138: Bancarizado | E138: Canceladas | F138: Vigentes | L138: PODEBI | M138: No objeto | N138: Exento | O138: 0 | P138: 0.08 | Q138: 0.16 | R138: 0.08 | S138: 0.16
B139: 1 | C139: Efectivo | D139: No
B140: 2 | C140: Cheque nominativo | D140: Sí
B141: 3 | C141: Transferencia electrónica de fondos | D141: Sí
B142: 4 | C142: Tarjeta de crédito | D142: Sí
B143: 5 | C143: Monedero electrónico | D143: Sí
B144: 6 | C144: Dinero electrónico | D144: Sí
B145: 8 | C145: Vales de despensa | D145: No
B146: 12 | C146: Dación en pago | D146: No
B147: 13 | C147: Pago por subrogación | D147: No
B148: 14 | C148: Pago por consignación | D148: No
B149: 15 | C149: Condonación | D149: No
B150: 17 | C150: Compensación | D150: No
B151: 23 | C151: Novación | D151: No
B152: 24 | C152: Confusión | D152: No
B153: 25 | C153: Remisión de deuda | D153: No
B154: 26 | C154: Prescripción o caducidad | D154: No
B155: 27 | C155: A satisfacción del acreedor | D155: No
B156: 28 | C156: Tarjeta de débito | D156: Sí
B157: 29 | C157: Tarjeta de servicios | D157: Sí
B158: 30 | C158: Aplicación de anticipos | D158: No
B159: 31 | C159: Intermediario pagos | D159: No
B160: 99 | C160: Por definir | D160: Opcional
D162: Totales

Sheet IVA (hidden)
B4: Año
B5: RFC contibuyente
C7: CFDI emitidos
C8: Ingreso con método de pago PUE | G8: Complemento de pago | M8: CFDI de tipo egreso con método de pago PUE
B9: Mes | C9: Base de IVA al 8% | D9: IVA 8% | E9: Base IVA 16% | F9: IVA 16% | G9: Base de IVA al 8% | H9: IVA 8% | I9: Base IVA 16% | J9: IVA 16% | K9: Total base IVA | L9: Total del IVA | M9: Base de IVA al 8% | N9: IVA 8% | O9: Base IVA 16% | P9: IVA 16%
B10: Enero
B11: Febrero
B12: Marzo
B13: Abril
B14: Mayo
B15: Junio
B16: Julio
B17: Agosto
B18: Septiembre
B19: Octubre
B20: Noviembre
B21: Diciembre
C25: CFDI recibidos
C26: Ingreso con método de pago PUE | G26: Complemento de pago | M26: CFDI de tipo egreso con método de pago PUE
B27: Mes | C27: Base de IVA al 8% | D27: IVA 8% | E27: Base IVA 16% | F27: IVA 16% | G27: Base de IVA al 8% | H27: IVA 8% | I27: Base IVA 16% | J27: IVA 16% | K27: Total base IVA | L27: Total del IVA | M27: Base de IVA al 8% | N27: IVA 8% | O27: Base IVA 16% | P27: IVA 16%
B28: Enero
B29: Febrero
B30: Marzo
B31: Abril
B32: Mayo
B33: Junio
B34: Julio
B35: Agosto
B36: Septiembre
B37: Octubre
B38: Noviembre
B39: Diciembre
B42: Determinación del IVA con base en los CFDI
B44: Emitidos | C44: Enero | D44: Febrero | E44: Marzo | F44: Abril | G44: Mayo | H44: Junio | I44: Julio | J44: Agosto | K44: Septiembre | L44: Octubre | M44: Noviembre | N44: Diciembre
B45: Base IVA 8%
B46: Base IVA 16%
B47: Total base
B49: IVA 8%
B50: IVA 16%
B52: Recibidos
B53: Base IVA 8%
B54: Base IVA 16%
B55: Total base
B57: IVA 8%
B58: IVA 16%
B60: Retenciones de IVA
B61: IVA a cargo
B62: (-) Acreditamiento IVA
B63: (=) IVA por pagar
B65: IVA saldo a favor
B68: Este cálculo es solo con los CFDI de las hojas CFDIE, RPAGOSE, CFDIR, RPAGOSR

Sheet SFAVOR (hidden)
B4: Registro de Saldos a Favor
B5: Alta de saldos por impuesto, periodo, declaración y origen
B7: ID Saldo | C7: Impuesto | D7: Ejercicio | E7: Periodo | F7: Fecha de presentación | G7: Tipo Declaración | H7: No. Operación | I7: Origen del Saldo | J7: Importe saldo a favor | K7: Estatus

Sheet ACREDITA (hidden)
B3: Control de Acreditamientos
B4: Aplicación de saldos a favor contra impuestos a cargo
B6: ID Saldo | C6: Fecha de presenación en donde se acredita | D6: Ejercicio Aplicación | E6: Periodo Aplicación | F6: No. de operación declaración de aplicación | G6: Saldo a favor original | H6: Impuesto a Cargo | I6: Saldo a favor acreditado | J6: Impuesto a cargo | K6: Saldo Disponible Después | L6: Observaciones
G7: =IFERROR(VLOOKUP(B7,SFAVOR!$B$8:$K$548,9,FALSE),"") ->  | J7: =IFERROR(IF(OR(H7<>"",I7<>""),H7-I7,""),"") ->  | K7: =IFERROR(IF(B7<>"",SUMIFS(SFAVOR!$J:$J,SFAVOR!$B:$B,$B7,SFAVOR!$F:$F,"<="&$C7)-SUMIF($B$7:B7,B7,$I$7:I7),""),"") -> 
G8: =IFERROR(VLOOKUP(B8,SFAVOR!$B$8:$K$548,9,FALSE),"") ->  | J8: =IFERROR(IF(OR(H8<>"",I8<>""),H8-I8,""),"") ->  | K8: =IFERROR(IF(B8<>"",SUMIFS(SFAVOR!$J:$J,SFAVOR!$B:$B,$B8,SFAVOR!$F:$F,"<="&$C8)-SUMIF($B$7:B8,B8,$I$7:I8),""),"") -> 
G9: =IFERROR(VLOOKUP(B9,SFAVOR!$B$8:$K$548,9,FALSE),"") ->  | K9: =IFERROR(IF(B9<>"",SUMIFS(SFAVOR!$J:$J,SFAVOR!$B:$B,$B9,SFAVOR!$F:$F,"<="&$C9)-SUMIF($B$7:B9,B9,$I$7:I9),""),"") -> 
G10: =IFERROR(VLOOKUP(B10,SFAVOR!$B$8:$K$548,9,FALSE),"") ->  | K10: =IFERROR(IF(B10<>"",SUMIFS(SFAVOR!$J:$J,SFAVOR!$B:$B,$B10,SFAVOR!$F:$F,"<="&$C10)-SUMIF($B$7:B10,B10,$I$7:I10),""),"") -> 
G11: =IFERROR(VLOOKUP(B11,SFAVOR!$B$8:$K$548,9,FALSE),"") ->  | K11: =IFERROR(IF(B11<>"",SUMIFS(SFAVOR!$J:$J,SFAVOR!$B:$B,$B11,SFAVOR!$F:$F,"<="&$C11)-SUMIF($B$7:B11,B11,$I$7:I11),""),"") -> 
G12: =IFERROR(VLOOKUP(B12,SFAVOR!$B$8:$K$548,9,FALSE),"") ->  | K12: =IFERROR(IF(B12<>"",SUMIFS(SFAVOR!$J:$J,SFAVOR!$B:$B,$B12,SFAVOR!$F:$F,"<="&$C12)-SUMIF($B$7:B12,B12,$I$7:I12),""),"") -> 
G13: =IFERROR(VLOOKUP(B13,SFAVOR!$B$8:$K$548,9,FALSE),"") ->  | K13: =IFERROR(IF(B13<>"",SUMIFS(SFAVOR!$J:$J,SFAVOR!$B:$B,$B13,SFAVOR!$F:$F,"<="&$C13)-SUMIF($B$7:B13,B13,$I$7:I13),""),"") -> 
G14: =IFERROR(VLOOKUP(B14,SFAVOR!$B$8:$K$548,9,FALSE),"") ->  | K14: =IFERROR(IF(B14<>"",SUMIFS(SFAVOR!$J:$J,SFAVOR!$B:$B,$B14,SFAVOR!$F:$F,"<="&$C14)-SUMIF($B$7:B14,B14,$I$7:I14),""),"") -> 
G15: =IFERROR(VLOOKUP(B15,SFAVOR!$B$8:$K$548,9,FALSE),"") ->  | K15: =IFERROR(IF(B15<>"",SUMIFS(SFAVOR!$J:$J,SFAVOR!$B:$B,$B15,SFAVOR!$F:$F,"<="&$C15)-SUMIF($B$7:B15,B15,$I$7:I15),""),"") -> 
G16: =IFERROR(VLOOKUP(B16,SFAVOR!$B$8:$K$548,9,FALSE),"") ->  | K16: =IFERROR(IF(B16<>"",SUMIFS(SFAVOR!$J:$J,SFAVOR!$B:$B,$B16,SFAVOR!$F:$F,"<="&$C16)-SUMIF($B$7:B16,B16,$I$7:I16),""),"") -> 
G17: =IFERROR(VLOOKUP(B17,SFAVOR!$B$8:$K$548,9,FALSE),"") ->  | K17: =IFERROR(IF(B17<>"",SUMIFS(SFAVOR!$J:$J,SFAVOR!$B:$B,$B17,SFAVOR!$F:$F,"<="&$C17)-SUMIF($B$7:B17,B17,$I$7:I17),""),"") -> 
G18: =IFERROR(VLOOKUP(B18,SFAVOR!$B$8:$K$548,9,FALSE),"") ->  | K18: =IFERROR(IF(B18<>"",SUMIFS(SFAVOR!$J:$J,SFAVOR!$B:$B,$B18,SFAVOR!$F:$F,"<="&$C18)-SUMIF($B$7:B18,B18,$I$7:I18),""),"") -> 
G19: =IFERROR(VLOOKUP(B19,SFAVOR!$B$8:$K$548,9,FALSE),"") ->  | K19: =IFERROR(IF(B19<>"",SUMIFS(SFAVOR!$J:$J,SFAVOR!$B:$B,$B19,SFAVOR!$F:$F,"<="&$C19)-SUMIF($B$7:B19,B19,$I$7:I19),""),"") -> 
G20: =IFERROR(VLOOKUP(B20,SFAVOR!$B$8:$K$548,9,FALSE),"") ->  | K20: =IFERROR(IF(B20<>"",SUMIFS(SFAVOR!$J:$J,SFAVOR!$B:$B,$B20,SFAVOR!$F:$F,"<="&$C20)-SUMIF($B$7:B20,B20,$I$7:I20),""),"") -> 
G21: =IFERROR(VLOOKUP(B21,SFAVOR!$B$8:$K$548,9,FALSE),"") ->  | K21: =IFERROR(IF(B21<>"",SUMIFS(SFAVOR!$J:$J,SFAVOR!$B:$B,$B21,SFAVOR!$F:$F,"<="&$C21)-SUMIF($B$7:B21,B21,$I$7:I21),""),"") -> 
G22: =IFERROR(VLOOKUP(B22,SFAVOR!$B$8:$K$548,9,FALSE),"") ->  | K22: =IFERROR(IF(B22<>"",SUMIFS(SFAVOR!$J:$J,SFAVOR!$B:$B,$B22,SFAVOR!$F:$F,"<="&$C22)-SUMIF($B$7:B22,B22,$I$7:I22),""),"") -> 
G23: =IFERROR(VLOOKUP(B23,SFAVOR!$B$8:$K$548,9,FALSE),"") ->  | K23: =IFERROR(IF(B23<>"",SUMIFS(SFAVOR!$J:$J,SFAVOR!$B:$B,$B23,SFAVOR!$F:$F,"<="&$C23)-SUMIF($B$7:B23,B23,$I$7:I23),""),"") -> 
G24: =IFERROR(VLOOKUP(B24,SFAVOR!$B$8:$K$548,9,FALSE),"") ->  | K24: =IFERROR(IF(B24<>"",SUMIFS(SFAVOR!$J:$J,SFAVOR!$B:$B,$B24,SFAVOR!$F:$F,"<="&$C24)-SUMIF($B$7:B24,B24,$I$7:I24),""),"") -> 
G25: =IFERROR(VLOOKUP(B25,SFAVOR!$B$8:$K$548,9,FALSE),"") ->  | K25: =IFERROR(IF(B25<>"",SUMIFS(SFAVOR!$J:$J,SFAVOR!$B:$B,$B25,SFAVOR!$F:$F,"<="&$C25)-SUMIF($B$7:B25,B25,$I$7:I25),""),"") -> 
G26: =IFERROR(VLOOKUP(B26,SFAVOR!$B$8:$K$548,9,FALSE),"") ->  | K26: =IFERROR(IF(B26<>"",SUMIFS(SFAVOR!$J:$J,SFAVOR!$B:$B,$B26,SFAVOR!$F:$F,"<="&$C26)-SUMIF($B$7:B26,B26,$I$7:I26),""),"") -> 
G27: =IFERROR(VLOOKUP(B27,SFAVOR!$B$8:$K$548,9,FALSE),"") ->  | K27: =IFERROR(IF(B27<>"",SUMIFS(SFAVOR!$J:$J,SFAVOR!$B:$B,$B27,SFAVOR!$F:$F,"<="&$C27)-SUMIF($B$7:B27,B27,$I$7:I27),""),"") -> 
G28: =IFERROR(VLOOKUP(B28,SFAVOR!$B$8:$K$548,9,FALSE),"") ->  | K28: =IFERROR(IF(B28<>"",SUMIFS(SFAVOR!$J:$J,SFAVOR!$B:$B,$B28,SFAVOR!$F:$F,"<="&$C28)-SUMIF($B$7:B28,B28,$I$7:I28),""),"") -> 
G29: =IFERROR(VLOOKUP(B29,SFAVOR!$B$8:$K$548,9,FALSE),"") ->  | K29: =IFERROR(IF(B29<>"",SUMIFS(SFAVOR!$J:$J,SFAVOR!$B:$B,$B29,SFAVOR!$F:$F,"<="&$C29)-SUMIF($B$7:B29,B29,$I$7:I29),""),"") -> 
G30: =IFERROR(VLOOKUP(B30,SFAVOR!$B$8:$K$548,9,FALSE),"") ->  | K30: =IFERROR(IF(B30<>"",SUMIFS(SFAVOR!$J:$J,SFAVOR!$B:$B,$B30,SFAVOR!$F:$F,"<="&$C30)-SUMIF($B$7:B30,B30,$I$7:I30),""),"") -> 
G31: =IFERROR(VLOOKUP(B31,SFAVOR!$B$8:$K$548,9,FALSE),"") ->  | K31: =IFERROR(IF(B31<>"",SUMIFS(SFAVOR!$J:$J,SFAVOR!$B:$B,$B31,SFAVOR!$F:$F,"<="&$C31)-SUMIF($B$7:B31,B31,$I$7:I31),""),"") -> 
G32: =IFERROR(VLOOKUP(B32,SFAVOR!$B$8:$K$548,9,FALSE),"") ->  | K32: =IFERROR(IF(B32<>"",SUMIFS(SFAVOR!$J:$J,SFAVOR!$B:$B,$B32,SFAVOR!$F:$F,"<="&$C32)-SUMIF($B$7:B32,B32,$I$7:I32),""),"") -> 
G33: =IFERROR(VLOOKUP(B33,SFAVOR!$B$8:$K$548,9,FALSE),"") ->  | K33: =IFERROR(IF(B33<>"",SUMIFS(SFAVOR!$J:$J,SFAVOR!$B:$B,$B33,SFAVOR!$F:$F,"<="&$C33)-SUMIF($B$7:B33,B33,$I$7:I33),""),"") -> 
G34: =IFERROR(VLOOKUP(B34,SFAVOR!$B$8:$K$548,9,FALSE),"") ->  | K34: =IFERROR(IF(B34<>"",SUMIFS(SFAVOR!$J:$J,SFAVOR!$B:$B,$B34,SFAVOR!$F:$F,"<="&$C34)-SUMIF($B$7:B34,B34,$I$7:I34),""),"") -> 
G35: =IFERROR(VLOOKUP(B35,SFAVOR!$B$8:$K$548,9,FALSE),"") ->  | K35: =IFERROR(IF(B35<>"",SUMIFS(SFAVOR!$J:$J,SFAVOR!$B:$B,$B35,SFAVOR!$F:$F,"<="&$C35)-SUMIF($B$7:B35,B35,$I$7:I35),""),"") -> 
G36: =IFERROR(VLOOKUP(B36,SFAVOR!$B$8:$K$548,9,FALSE),"") ->  | K36: =IFERROR(IF(B36<>"",SUMIFS(SFAVOR!$J:$J,SFAVOR!$B:$B,$B36,SFAVOR!$F:$F,"<="&$C36)-SUMIF($B$7:B36,B36,$I$7:I36),""),"") -> 
G37: =IFERROR(VLOOKUP(B37,SFAVOR!$B$8:$K$548,9,FALSE),"") ->  | K37: =IFERROR(IF(B37<>"",SUMIFS(SFAVOR!$J:$J,SFAVOR!$B:$B,$B37,SFAVOR!$F:$F,"<="&$C37)-SUMIF($B$7:B37,B37,$I$7:I37),""),"") -> 
G38: =IFERROR(VLOOKUP(B38,SFAVOR!$B$8:$K$548,9,FALSE),"") ->  | K38: =IFERROR(IF(B38<>"",SUMIFS(SFAVOR!$J:$J,SFAVOR!$B:$B,$B38,SFAVOR!$F:$F,"<="&$C38)-SUMIF($B$7:B38,B38,$I$7:I38),""),"") -> 
G39: =IFERROR(VLOOKUP(B39,SFAVOR!$B$8:$K$548,9,FALSE),"") ->  | K39: =IFERROR(IF(B39<>"",SUMIFS(SFAVOR!$J:$J,SFAVOR!$B:$B,$B39,SFAVOR!$F:$F,"<="&$C39)-SUMIF($B$7:B39,B39,$I$7:I39),""),"") -> 
G40: =IFERROR(VLOOKUP(B40,SFAVOR!$B$8:$K$548,9,FALSE),"") ->  | K40: =IFERROR(IF(B40<>"",SUMIFS(SFAVOR!$J:$J,SFAVOR!$B:$B,$B40,SFAVOR!$F:$F,"<="&$C40)-SUMIF($B$7:B40,B40,$I$7:I40),""),"") -> 
G41: =IFERROR(VLOOKUP(B41,SFAVOR!$B$8:$K$548,9,FALSE),"") ->  | K41: =IFERROR(IF(B41<>"",SUMIFS(SFAVOR!$J:$J,SFAVOR!$B:$B,$B41,SFAVOR!$F:$F,"<="&$C41)-SUMIF($B$7:B41,B41,$I$7:I41),""),"") -> 
G42: =IFERROR(VLOOKUP(B42,SFAVOR!$B$8:$K$548,9,FALSE),"") ->  | K42: =IFERROR(IF(B42<>"",SUMIFS(SFAVOR!$J:$J,SFAVOR!$B:$B,$B42,SFAVOR!$F:$F,"<="&$C42)-SUMIF($B$7:B42,B42,$I$7:I42),""),"") -> 
G43: =IFERROR(VLOOKUP(B43,SFAVOR!$B$8:$K$548,9,FALSE),"") ->  | K43: =IFERROR(IF(B43<>"",SUMIFS(SFAVOR!$J:$J,SFAVOR!$B:$B,$B43,SFAVOR!$F:$F,"<="&$C43)-SUMIF($B$7:B43,B43,$I$7:I43),""),"") -> 
G44: =IFERROR(VLOOKUP(B44,SFAVOR!$B$8:$K$548,9,FALSE),"") ->  | K44: =IFERROR(IF(B44<>"",SUMIFS(SFAVOR!$J:$J,SFAVOR!$B:$B,$B44,SFAVOR!$F:$F,"<="&$C44)-SUMIF($B$7:B44,B44,$I$7:I44),""),"") -> 
G45: =IFERROR(VLOOKUP(B45,SFAVOR!$B$8:$K$548,9,FALSE),"") ->  | K45: =IFERROR(IF(B45<>"",SUMIFS(SFAVOR!$J:$J,SFAVOR!$B:$B,$B45,SFAVOR!$F:$F,"<="&$C45)-SUMIF($B$7:B45,B45,$I$7:I45),""),"") -> 
G46: =IFERROR(VLOOKUP(B46,SFAVOR!$B$8:$K$548,9,FALSE),"") ->  | K46: =IFERROR(IF(B46<>"",SUMIFS(SFAVOR!$J:$J,SFAVOR!$B:$B,$B46,SFAVOR!$F:$F,"<="&$C46)-SUMIF($B$7:B46,B46,$I$7:I46),""),"") -> 
G47: =IFERROR(VLOOKUP(B47,SFAVOR!$B$8:$K$548,9,FALSE),"") ->  | K47: =IFERROR(IF(B47<>"",SUMIFS(SFAVOR!$J:$J,SFAVOR!$B:$B,$B47,SFAVOR!$F:$F,"<="&$C47)-SUMIF($B$7:B47,B47,$I$7:I47),""),"") -> 
G48: =IFERROR(VLOOKUP(B48,SFAVOR!$B$8:$K$548,9,FALSE),"") ->  | K48: =IFERROR(IF(B48<>"",SUMIFS(SFAVOR!$J:$J,SFAVOR!$B:$B,$B48,SFAVOR!$F:$F,"<="&$C48)-SUMIF($B$7:B48,B48,$I$7:I48),""),"") -> 
G49: =IFERROR(VLOOKUP(B49,SFAVOR!$B$8:$K$548,9,FALSE),"") ->  | K49: =IFERROR(IF(B49<>"",SUMIFS(SFAVOR!$J:$J,SFAVOR!$B:$B,$B49,SFAVOR!$F:$F,"<="&$C49)-SUMIF($B$7:B49,B49,$I$7:I49),""),"") -> 
G50: =IFERROR(VLOOKUP(B50,SFAVOR!$B$8:$K$548,9,FALSE),"") ->  | K50: =IFERROR(IF(B50<>"",SUMIFS(SFAVOR!$J:$J,SFAVOR!$B:$B,$B50,SFAVOR!$F:$F,"<="&$C50)-SUMIF($B$7:B50,B50,$I$7:I50),""),"") -> 
G51: =IFERROR(VLOOKUP(B51,SFAVOR!$B$8:$K$548,9,FALSE),"") ->  | K51: =IFERROR(IF(B51<>"",SUMIFS(SFAVOR!$J:$J,SFAVOR!$B:$B,$B51,SFAVOR!$F:$F,"<="&$C51)-SUMIF($B$7:B51,B51,$I$7:I51),""),"") -> 
G52: =IFERROR(VLOOKUP(B52,SFAVOR!$B$8:$K$548,9,FALSE),"") ->  | K52: =IFERROR(IF(B52<>"",SUMIFS(SFAVOR!$J:$J,SFAVOR!$B:$B,$B52,SFAVOR!$F:$F,"<="&$C52)-SUMIF($B$7:B52,B52,$I$7:I52),""),"") -> 
G53: =IFERROR(VLOOKUP(B53,SFAVOR!$B$8:$K$548,9,FALSE),"") ->  | K53: =IFERROR(IF(B53<>"",SUMIFS(SFAVOR!$J:$J,SFAVOR!$B:$B,$B53,SFAVOR!$F:$F,"<="&$C53)-SUMIF($B$7:B53,B53,$I$7:I53),""),"") -> 
G54: =IFERROR(VLOOKUP(B54,SFAVOR!$B$8:$K$548,9,FALSE),"") ->  | K54: =IFERROR(IF(B54<>"",SUMIFS(SFAVOR!$J:$J,SFAVOR!$B:$B,$B54,SFAVOR!$F:$F,"<="&$C54)-SUMIF($B$7:B54,B54,$I$7:I54),""),"") -> 
G55: =IFERROR(VLOOKUP(B55,SFAVOR!$B$8:$K$548,9,FALSE),"") ->  | K55: =IFERROR(IF(B55<>"",SUMIFS(SFAVOR!$J:$J,SFAVOR!$B:$B,$B55,SFAVOR!$F:$F,"<="&$C55)-SUMIF($B$7:B55,B55,$I$7:I55),""),"") -> 
G56: =IFERROR(VLOOKUP(B56,SFAVOR!$B$8:$K$548,9,FALSE),"") ->  | K56: =IFERROR(IF(B56<>"",SUMIFS(SFAVOR!$J:$J,SFAVOR!$B:$B,$B56,SFAVOR!$F:$F,"<="&$C56)-SUMIF($B$7:B56,B56,$I$7:I56),""),"") -> 
G57: =IFERROR(VLOOKUP(B57,SFAVOR!$B$8:$K$548,9,FALSE),"") ->  | K57: =IFERROR(IF(B57<>"",SUMIFS(SFAVOR!$J:$J,SFAVOR!$B:$B,$B57,SFAVOR!$F:$F,"<="&$C57)-SUMIF($B$7:B57,B57,$I$7:I57),""),"") -> 
G58: =IFERROR(VLOOKUP(B58,SFAVOR!$B$8:$K$548,9,FALSE),"") ->  | K58: =IFERROR(IF(B58<>"",SUMIFS(SFAVOR!$J:$J,SFAVOR!$B:$B,$B58,SFAVOR!$F:$F,"<="&$C58)-SUMIF($B$7:B58,B58,$I$7:I58),""),"") -> 
G59: =IFERROR(VLOOKUP(B59,SFAVOR!$B$8:$K$548,9,FALSE),"") ->  | K59: =IFERROR(IF(B59<>"",SUMIFS(SFAVOR!$J:$J,SFAVOR!$B:$B,$B59,SFAVOR!$F:$F,"<="&$C59)-SUMIF($B$7:B59,B59,$I$7:I59),""),"") -> 
G60: =IFERROR(VLOOKUP(B60,SFAVOR!$B$8:$K$548,9,FALSE),"") ->  | K60: =IFERROR(IF(B60<>"",SUMIFS(SFAVOR!$J:$J,SFAVOR!$B:$B,$B60,SFAVOR!$F:$F,"<="&$C60)-SUMIF($B$7:B60,B60,$I$7:I60),""),"") -> 
G61: =IFERROR(VLOOKUP(B61,SFAVOR!$B$8:$K$548,9,FALSE),"") ->  | K61: =IFERROR(IF(B61<>"",SUMIFS(SFAVOR!$J:$J,SFAVOR!$B:$B,$B61,SFAVOR!$F:$F,"<="&$C61)-SUMIF($B$7:B61,B61,$I$7:I61),""),"") -> 
G62: =IFERROR(VLOOKUP(B62,SFAVOR!$B$8:$K$548,9,FALSE),"") ->  | K62: =IFERROR(IF(B62<>"",SUMIFS(SFAVOR!$J:$J,SFAVOR!$B:$B,$B62,SFAVOR!$F:$F,"<="&$C62)-SUMIF($B$7:B62,B62,$I$7:I62),""),"") -> 
G63: =IFERROR(VLOOKUP(B63,SFAVOR!$B$8:$K$548,9,FALSE),"") ->  | K63: =IFERROR(IF(B63<>"",SUMIFS(SFAVOR!$J:$J,SFAVOR!$B:$B,$B63,SFAVOR!$F:$F,"<="&$C63)-SUMIF($B$7:B63,B63,$I$7:I63),""),"") -> 
G64: =IFERROR(VLOOKUP(B64,SFAVOR!$B$8:$K$548,9,FALSE),"") ->  | K64: =IFERROR(IF(B64<>"",SUMIFS(SFAVOR!$J:$J,SFAVOR!$B:$B,$B64,SFAVOR!$F:$F,"<="&$C64)-SUMIF($B$7:B64,B64,$I$7:I64),""),"") -> 
G65: =IFERROR(VLOOKUP(B65,SFAVOR!$B$8:$K$548,9,FALSE),"") ->  | K65: =IFERROR(IF(B65<>"",SUMIFS(SFAVOR!$J:$J,SFAVOR!$B:$B,$B65,SFAVOR!$F:$F,"<="&$C65)-SUMIF($B$7:B65,B65,$I$7:I65),""),"") -> 
G66: =IFERROR(VLOOKUP(B66,SFAVOR!$B$8:$K$548,9,FALSE),"") ->  | K66: =IFERROR(IF(B66<>"",SUMIFS(SFAVOR!$J:$J,SFAVOR!$B:$B,$B66,SFAVOR!$F:$F,"<="&$C66)-SUMIF($B$7:B66,B66,$I$7:I66),""),"") -> 
G67: =IFERROR(VLOOKUP(B67,SFAVOR!$B$8:$K$548,9,FALSE),"") ->  | K67: =IFERROR(IF(B67<>"",SUMIFS(SFAVOR!$J:$J,SFAVOR!$B:$B,$B67,SFAVOR!$F:$F,"<="&$C67)-SUMIF($B$7:B67,B67,$I$7:I67),""),"") -> 
G68: =IFERROR(VLOOKUP(B68,SFAVOR!$B$8:$K$548,9,FALSE),"") ->  | K68: =IFERROR(IF(B68<>"",SUMIFS(SFAVOR!$J:$J,SFAVOR!$B:$B,$B68,SFAVOR!$F:$F,"<="&$C68)-SUMIF($B$7:B68,B68,$I$7:I68),""),"") -> 
G69: =IFERROR(VLOOKUP(B69,SFAVOR!$B$8:$K$548,9,FALSE),"") ->  | K69: =IFERROR(IF(B69<>"",SUMIFS(SFAVOR!$J:$J,SFAVOR!$B:$B,$B69,SFAVOR!$F:$F,"<="&$C69)-SUMIF($B$7:B69,B69,$I$7:I69),""),"") -> 
G70: =IFERROR(VLOOKUP(B70,SFAVOR!$B$8:$K$548,9,FALSE),"") ->  | K70: =IFERROR(IF(B70<>"",SUMIFS(SFAVOR!$J:$J,SFAVOR!$B:$B,$B70,SFAVOR!$F:$F,"<="&$C70)-SUMIF($B$7:B70,B70,$I$7:I70),""),"") -> 
G71: =IFERROR(VLOOKUP(B71,SFAVOR!$B$8:$K$548,9,FALSE),"") ->  | K71: =IFERROR(IF(B71<>"",SUMIFS(SFAVOR!$J:$J,SFAVOR!$B:$B,$B71,SFAVOR!$F:$F,"<="&$C71)-SUMIF($B$7:B71,B71,$I$7:I71),""),"") -> 
G72: =IFERROR(VLOOKUP(B72,SFAVOR!$B$8:$K$548,9,FALSE),"") ->  | J72: =IFERROR(IF(OR(H72<>"",I72<>""),H72-I72,""),"") ->  | K72: =IFERROR(IF(B72<>"",SUMIFS(SFAVOR!$J:$J,SFAVOR!$B:$B,$B72,SFAVOR!$F:$F,"<="&$C72)-SUMIF($B$7:B72,B72,$I$7:I72),""),"") -> 
G73: =IFERROR(VLOOKUP(B73,SFAVOR!$B$8:$K$548,9,FALSE),"") ->  | K73: =IFERROR(IF(B73<>"",SUMIFS(SFAVOR!$J:$J,SFAVOR!$B:$B,$B73,SFAVOR!$F:$F,"<="&$C73)-SUMIF($B$7:B73,B73,$I$7:I73),""),"") -> 
G74: =IFERROR(VLOOKUP(B74,SFAVOR!$B$8:$K$548,9,FALSE),"") ->  | K74: =IFERROR(IF(B74<>"",SUMIFS(SFAVOR!$J:$J,SFAVOR!$B:$B,$B74,SFAVOR!$F:$F,"<="&$C74)-SUMIF($B$7:B74,B74,$I$7:I74),""),"") -> 
G75: =IFERROR(VLOOKUP(B75,SFAVOR!$B$8:$K$548,9,FALSE),"") ->  | K75: =IFERROR(IF(B75<>"",SUMIFS(SFAVOR!$J:$J,SFAVOR!$B:$B,$B75,SFAVOR!$F:$F,"<="&$C75)-SUMIF($B$7:B75,B75,$I$7:I75),""),"") -> 
G76: =IFERROR(VLOOKUP(B76,SFAVOR!$B$8:$K$548,9,FALSE),"") ->  | K76: =IFERROR(IF(B76<>"",SUMIFS(SFAVOR!$J:$J,SFAVOR!$B:$B,$B76,SFAVOR!$F:$F,"<="&$C76)-SUMIF($B$7:B76,B76,$I$7:I76),""),"") -> 
G77: =IFERROR(VLOOKUP(B77,SFAVOR!$B$8:$K$548,9,FALSE),"") ->  | K77: =IFERROR(IF(B77<>"",SUMIFS(SFAVOR!$J:$J,SFAVOR!$B:$B,$B77,SFAVOR!$F:$F,"<="&$C77)-SUMIF($B$7:B77,B77,$I$7:I77),""),"") -> 
G78: =IFERROR(VLOOKUP(B78,SFAVOR!$B$8:$K$548,9,FALSE),"") ->  | K78: =IFERROR(IF(B78<>"",SUMIFS(SFAVOR!$J:$J,SFAVOR!$B:$B,$B78,SFAVOR!$F:$F,"<="&$C78)-SUMIF($B$7:B78,B78,$I$7:I78),""),"") -> 
G79: =IFERROR(VLOOKUP(B79,SFAVOR!$B$8:$K$548,9,FALSE),"") ->  | K79: =IFERROR(IF(B79<>"",SUMIFS(SFAVOR!$J:$J,SFAVOR!$B:$B,$B79,SFAVOR!$F:$F,"<="&$C79)-SUMIF($B$7:B79,B79,$I$7:I79),""),"") -> 
G80: =IFERROR(VLOOKUP(B80,SFAVOR!$B$8:$K$548,9,FALSE),"") ->  | K80: =IFERROR(IF(B80<>"",SUMIFS(SFAVOR!$J:$J,SFAVOR!$B:$B,$B80,SFAVOR!$F:$F,"<="&$C80)-SUMIF($B$7:B80,B80,$I$7:I80),""),"") -> 
G81: =IFERROR(VLOOKUP(B81,SFAVOR!$B$8:$K$548,9,FALSE),"") ->  | K81: =IFERROR(IF(B81<>"",SUMIFS(SFAVOR!$J:$J,SFAVOR!$B:$B,$B81,SFAVOR!$F:$F,"<="&$C81)-SUMIF($B$7:B81,B81,$I$7:I81),""),"") -> 
G82: =IFERROR(VLOOKUP(B82,SFAVOR!$B$8:$K$548,9,FALSE),"") ->  | K82: =IFERROR(IF(B82<>"",SUMIFS(SFAVOR!$J:$J,SFAVOR!$B:$B,$B82,SFAVOR!$F:$F,"<="&$C82)-SUMIF($B$7:B82,B82,$I$7:I82),""),"") -> 
G83: =IFERROR(VLOOKUP(B83,SFAVOR!$B$8:$K$548,9,FALSE),"") ->  | K83: =IFERROR(IF(B83<>"",SUMIFS(SFAVOR!$J:$J,SFAVOR!$B:$B,$B83,SFAVOR!$F:$F,"<="&$C83)-SUMIF($B$7:B83,B83,$I$7:I83),""),"") -> 
G84: =IFERROR(VLOOKUP(B84,SFAVOR!$B$8:$K$548,9,FALSE),"") ->  | K84: =IFERROR(IF(B84<>"",SUMIFS(SFAVOR!$J:$J,SFAVOR!$B:$B,$B84,SFAVOR!$F:$F,"<="&$C84)-SUMIF($B$7:B84,B84,$I$7:I84),""),"") -> 
G85: =IFERROR(VLOOKUP(B85,SFAVOR!$B$8:$K$548,9,FALSE),"") ->  | K85: =IFERROR(IF(B85<>"",SUMIFS(SFAVOR!$J:$J,SFAVOR!$B:$B,$B85,SFAVOR!$F:$F,"<="&$C85)-SUMIF($B$7:B85,B85,$I$7:I85),""),"") -> 
G86: =IFERROR(VLOOKUP(B86,SFAVOR!$B$8:$K$548,9,FALSE),"") ->  | K86: =IFERROR(IF(B86<>"",SUMIFS(SFAVOR!$J:$J,SFAVOR!$B:$B,$B86,SFAVOR!$F:$F,"<="&$C86)-SUMIF($B$7:B86,B86,$I$7:I86),""),"") -> 
G87: =IFERROR(VLOOKUP(B87,SFAVOR!$B$8:$K$548,9,FALSE),"") ->  | K87: =IFERROR(IF(B87<>"",SUMIFS(SFAVOR!$J:$J,SFAVOR!$B:$B,$B87,SFAVOR!$F:$F,"<="&$C87)-SUMIF($B$7:B87,B87,$I$7:I87),""),"") -> 
G88: =IFERROR(VLOOKUP(B88,SFAVOR!$B$8:$K$548,9,FALSE),"") ->  | K88: =IFERROR(IF(B88<>"",SUMIFS(SFAVOR!$J:$J,SFAVOR!$B:$B,$B88,SFAVOR!$F:$F,"<="&$C88)-SUMIF($B$7:B88,B88,$I$7:I88),""),"") -> 
G89: =IFERROR(VLOOKUP(B89,SFAVOR!$B$8:$K$548,9,FALSE),"") ->  | K89: =IFERROR(IF(B89<>"",SUMIFS(SFAVOR!$J:$J,SFAVOR!$B:$B,$B89,SFAVOR!$F:$F,"<="&$C89)-SUMIF($B$7:B89,B89,$I$7:I89),""),"") -> 
G90: =IFERROR(VLOOKUP(B90,SFAVOR!$B$8:$K$548,9,FALSE),"") ->  | K90: =IFERROR(IF(B90<>"",SUMIFS(SFAVOR!$J:$J,SFAVOR!$B:$B,$B90,SFAVOR!$F:$F,"<="&$C90)-SUMIF($B$7:B90,B90,$I$7:I90),""),"") -> 
G91: =IFERROR(VLOOKUP(B91,SFAVOR!$B$8:$K$548,9,FALSE),"") ->  | K91: =IFERROR(IF(B91<>"",SUMIFS(SFAVOR!$J:$J,SFAVOR!$B:$B,$B91,SFAVOR!$F:$F,"<="&$C91)-SUMIF($B$7:B91,B91,$I$7:I91),""),"") -> 
G92: =IFERROR(VLOOKUP(B92,SFAVOR!$B$8:$K$548,9,FALSE),"") ->  | K92: =IFERROR(IF(B92<>"",SUMIFS(SFAVOR!$J:$J,SFAVOR!$B:$B,$B92,SFAVOR!$F:$F,"<="&$C92)-SUMIF($B$7:B92,B92,$I$7:I92),""),"") -> 
G93: =IFERROR(VLOOKUP(B93,SFAVOR!$B$8:$K$548,9,FALSE),"") ->  | K93: =IFERROR(IF(B93<>"",SUMIFS(SFAVOR!$J:$J,SFAVOR!$B:$B,$B93,SFAVOR!$F:$F,"<="&$C93)-SUMIF($B$7:B93,B93,$I$7:I93),""),"") -> 
G94: =IFERROR(VLOOKUP(B94,SFAVOR!$B$8:$K$548,9,FALSE),"") ->  | K94: =IFERROR(IF(B94<>"",SUMIFS(SFAVOR!$J:$J,SFAVOR!$B:$B,$B94,SFAVOR!$F:$F,"<="&$C94)-SUMIF($B$7:B94,B94,$I$7:I94),""),"") -> 
G95: =IFERROR(VLOOKUP(B95,SFAVOR!$B$8:$K$548,9,FALSE),"") ->  | K95: =IFERROR(IF(B95<>"",SUMIFS(SFAVOR!$J:$J,SFAVOR!$B:$B,$B95,SFAVOR!$F:$F,"<="&$C95)-SUMIF($B$7:B95,B95,$I$7:I95),""),"") -> 
G96: =IFERROR(VLOOKUP(B96,SFAVOR!$B$8:$K$548,9,FALSE),"") ->  | K96: =IFERROR(IF(B96<>"",SUMIFS(SFAVOR!$J:$J,SFAVOR!$B:$B,$B96,SFAVOR!$F:$F,"<="&$C96)-SUMIF($B$7:B96,B96,$I$7:I96),""),"") -> 
G97: =IFERROR(VLOOKUP(B97,SFAVOR!$B$8:$K$548,9,FALSE),"") ->  | K97: =IFERROR(IF(B97<>"",SUMIFS(SFAVOR!$J:$J,SFAVOR!$B:$B,$B97,SFAVOR!$F:$F,"<="&$C97)-SUMIF($B$7:B97,B97,$I$7:I97),""),"") -> 
G98: =IFERROR(VLOOKUP(B98,SFAVOR!$B$8:$K$548,9,FALSE),"") ->  | K98: =IFERROR(IF(B98<>"",SUMIFS(SFAVOR!$J:$J,SFAVOR!$B:$B,$B98,SFAVOR!$F:$F,"<="&$C98)-SUMIF($B$7:B98,B98,$I$7:I98),""),"") -> 
G99: =IFERROR(VLOOKUP(B99,SFAVOR!$B$8:$K$548,9,FALSE),"") ->  | K99: =IFERROR(IF(B99<>"",SUMIFS(SFAVOR!$J:$J,SFAVOR!$B:$B,$B99,SFAVOR!$F:$F,"<="&$C99)-SUMIF($B$7:B99,B99,$I$7:I99),""),"") -> 
G100: =IFERROR(VLOOKUP(B100,SFAVOR!$B$8:$K$548,9,FALSE),"") ->  | K100: =IFERROR(IF(B100<>"",SUMIFS(SFAVOR!$J:$J,SFAVOR!$B:$B,$B100,SFAVOR!$F:$F,"<="&$C100)-SUMIF($B$7:B100,B100,$I$7:I100),""),"") -> 
G101: =IFERROR(VLOOKUP(B101,SFAVOR!$B$8:$K$548,9,FALSE),"") ->  | K101: =IFERROR(IF(B101<>"",SUMIFS(SFAVOR!$J:$J,SFAVOR!$B:$B,$B101,SFAVOR!$F:$F,"<="&$C101)-SUMIF($B$7:B101,B101,$I$7:I101),""),"") -> 
G102: =IFERROR(VLOOKUP(B102,SFAVOR!$B$8:$K$548,9,FALSE),"") ->  | K102: =IFERROR(IF(B102<>"",SUMIFS(SFAVOR!$J:$J,SFAVOR!$B:$B,$B102,SFAVOR!$F:$F,"<="&$C102)-SUMIF($B$7:B102,B102,$I$7:I102),""),"") -> 
G103: =IFERROR(VLOOKUP(B103,SFAVOR!$B$8:$K$548,9,FALSE),"") ->  | K103: =IFERROR(IF(B103<>"",SUMIFS(SFAVOR!$J:$J,SFAVOR!$B:$B,$B103,SFAVOR!$F:$F,"<="&$C103)-SUMIF($B$7:B103,B103,$I$7:I103),""),"") -> 
G104: =IFERROR(VLOOKUP(B104,SFAVOR!$B$8:$K$548,9,FALSE),"") ->  | K104: =IFERROR(IF(B104<>"",SUMIFS(SFAVOR!$J:$J,SFAVOR!$B:$B,$B104,SFAVOR!$F:$F,"<="&$C104)-SUMIF($B$7:B104,B104,$I$7:I104),""),"") -> 
G105: =IFERROR(VLOOKUP(B105,SFAVOR!$B$8:$K$548,9,FALSE),"") ->  | K105: =IFERROR(IF(B105<>"",SUMIFS(SFAVOR!$J:$J,SFAVOR!$B:$B,$B105,SFAVOR!$F:$F,"<="&$C105)-SUMIF($B$7:B105,B105,$I$7:I105),""),"") -> 
G106: =IFERROR(VLOOKUP(B106,SFAVOR!$B$8:$K$548,9,FALSE),"") ->  | K106: =IFERROR(IF(B106<>"",SUMIFS(SFAVOR!$J:$J,SFAVOR!$B:$B,$B106,SFAVOR!$F:$F,"<="&$C106)-SUMIF($B$7:B106,B106,$I$7:I106),""),"") -> 
G107: =IFERROR(VLOOKUP(B107,SFAVOR!$B$8:$K$548,9,FALSE),"") ->  | K107: =IFERROR(IF(B107<>"",SUMIFS(SFAVOR!$J:$J,SFAVOR!$B:$B,$B107,SFAVOR!$F:$F,"<="&$C107)-SUMIF($B$7:B107,B107,$I$7:I107),""),"") -> 
G108: =IFERROR(VLOOKUP(B108,SFAVOR!$B$8:$K$548,9,FALSE),"") ->  | K108: =IFERROR(IF(B108<>"",SUMIFS(SFAVOR!$J:$J,SFAVOR!$B:$B,$B108,SFAVOR!$F:$F,"<="&$C108)-SUMIF($B$7:B108,B108,$I$7:I108),""),"") -> 
G109: =IFERROR(VLOOKUP(B109,SFAVOR!$B$8:$K$548,9,FALSE),"") ->  | K109: =IFERROR(IF(B109<>"",SUMIFS(SFAVOR!$J:$J,SFAVOR!$B:$B,$B109,SFAVOR!$F:$F,"<="&$C109)-SUMIF($B$7:B109,B109,$I$7:I109),""),"") -> 
G110: =IFERROR(VLOOKUP(B110,SFAVOR!$B$8:$K$548,9,FALSE),"") ->  | K110: =IFERROR(IF(B110<>"",SUMIFS(SFAVOR!$J:$J,SFAVOR!$B:$B,$B110,SFAVOR!$F:$F,"<="&$C110)-SUMIF($B$7:B110,B110,$I$7:I110),""),"") -> 
G111: =IFERROR(VLOOKUP(B111,SFAVOR!$B$8:$K$548,9,FALSE),"") ->  | K111: =IFERROR(IF(B111<>"",SUMIFS(SFAVOR!$J:$J,SFAVOR!$B:$B,$B111,SFAVOR!$F:$F,"<="&$C111)-SUMIF($B$7:B111,B111,$I$7:I111),""),"") -> 
G112: =IFERROR(VLOOKUP(B112,SFAVOR!$B$8:$K$548,9,FALSE),"") ->  | K112: =IFERROR(IF(B112<>"",SUMIFS(SFAVOR!$J:$J,SFAVOR!$B:$B,$B112,SFAVOR!$F:$F,"<="&$C112)-SUMIF($B$7:B112,B112,$I$7:I112),""),"") -> 
G113: =IFERROR(VLOOKUP(B113,SFAVOR!$B$8:$K$548,9,FALSE),"") ->  | K113: =IFERROR(IF(B113<>"",SUMIFS(SFAVOR!$J:$J,SFAVOR!$B:$B,$B113,SFAVOR!$F:$F,"<="&$C113)-SUMIF($B$7:B113,B113,$I$7:I113),""),"") -> 
G114: =IFERROR(VLOOKUP(B114,SFAVOR!$B$8:$K$548,9,FALSE),"") ->  | K114: =IFERROR(IF(B114<>"",SUMIFS(SFAVOR!$J:$J,SFAVOR!$B:$B,$B114,SFAVOR!$F:$F,"<="&$C114)-SUMIF($B$7:B114,B114,$I$7:I114),""),"") -> 
G115: =IFERROR(VLOOKUP(B115,SFAVOR!$B$8:$K$548,9,FALSE),"") ->  | K115: =IFERROR(IF(B115<>"",SUMIFS(SFAVOR!$J:$J,SFAVOR!$B:$B,$B115,SFAVOR!$F:$F,"<="&$C115)-SUMIF($B$7:B115,B115,$I$7:I115),""),"") -> 
G116: =IFERROR(VLOOKUP(B116,SFAVOR!$B$8:$K$548,9,FALSE),"") ->  | K116: =IFERROR(IF(B116<>"",SUMIFS(SFAVOR!$J:$J,SFAVOR!$B:$B,$B116,SFAVOR!$F:$F,"<="&$C116)-SUMIF($B$7:B116,B116,$I$7:I116),""),"") -> 
G117: =IFERROR(VLOOKUP(B117,SFAVOR!$B$8:$K$548,9,FALSE),"") ->  | K117: =IFERROR(IF(B117<>"",SUMIFS(SFAVOR!$J:$J,SFAVOR!$B:$B,$B117,SFAVOR!$F:$F,"<="&$C117)-SUMIF($B$7:B117,B117,$I$7:I117),""),"") -> 
G118: =IFERROR(VLOOKUP(B118,SFAVOR!$B$8:$K$548,9,FALSE),"") ->  | K118: =IFERROR(IF(B118<>"",SUMIFS(SFAVOR!$J:$J,SFAVOR!$B:$B,$B118,SFAVOR!$F:$F,"<="&$C118)-SUMIF($B$7:B118,B118,$I$7:I118),""),"") -> 
G119: =IFERROR(VLOOKUP(B119,SFAVOR!$B$8:$K$548,9,FALSE),"") ->  | K119: =IFERROR(IF(B119<>"",SUMIFS(SFAVOR!$J:$J,SFAVOR!$B:$B,$B119,SFAVOR!$F:$F,"<="&$C119)-SUMIF($B$7:B119,B119,$I$7:I119),""),"") -> 
G120: =IFERROR(VLOOKUP(B120,SFAVOR!$B$8:$K$548,9,FALSE),"") ->  | K120: =IFERROR(IF(B120<>"",SUMIFS(SFAVOR!$J:$J,SFAVOR!$B:$B,$B120,SFAVOR!$F:$F,"<="&$C120)-SUMIF($B$7:B120,B120,$I$7:I120),""),"") -> 
G121: =IFERROR(VLOOKUP(B121,SFAVOR!$B$8:$K$548,9,FALSE),"") ->  | K121: =IFERROR(IF(B121<>"",SUMIFS(SFAVOR!$J:$J,SFAVOR!$B:$B,$B121,SFAVOR!$F:$F,"<="&$C121)-SUMIF($B$7:B121,B121,$I$7:I121),""),"") -> 
G122: =IFERROR(VLOOKUP(B122,SFAVOR!$B$8:$K$548,9,FALSE),"") ->  | K122: =IFERROR(IF(B122<>"",SUMIFS(SFAVOR!$J:$J,SFAVOR!$B:$B,$B122,SFAVOR!$F:$F,"<="&$C122)-SUMIF($B$7:B122,B122,$I$7:I122),""),"") -> 
G123: =IFERROR(VLOOKUP(B123,SFAVOR!$B$8:$K$548,9,FALSE),"") ->  | K123: =IFERROR(IF(B123<>"",SUMIFS(SFAVOR!$J:$J,SFAVOR!$B:$B,$B123,SFAVOR!$F:$F,"<="&$C123)-SUMIF($B$7:B123,B123,$I$7:I123),""),"") -> 
G124: =IFERROR(VLOOKUP(B124,SFAVOR!$B$8:$K$548,9,FALSE),"") ->  | K124: =IFERROR(IF(B124<>"",SUMIFS(SFAVOR!$J:$J,SFAVOR!$B:$B,$B124,SFAVOR!$F:$F,"<="&$C124)-SUMIF($B$7:B124,B124,$I$7:I124),""),"") -> 
G125: =IFERROR(VLOOKUP(B125,SFAVOR!$B$8:$K$548,9,FALSE),"") ->  | K125: =IFERROR(IF(B125<>"",SUMIFS(SFAVOR!$J:$J,SFAVOR!$B:$B,$B125,SFAVOR!$F:$F,"<="&$C125)-SUMIF($B$7:B125,B125,$I$7:I125),""),"") -> 
G126: =IFERROR(VLOOKUP(B126,SFAVOR!$B$8:$K$548,9,FALSE),"") ->  | K126: =IFERROR(IF(B126<>"",SUMIFS(SFAVOR!$J:$J,SFAVOR!$B:$B,$B126,SFAVOR!$F:$F,"<="&$C126)-SUMIF($B$7:B126,B126,$I$7:I126),""),"") -> 
G127: =IFERROR(VLOOKUP(B127,SFAVOR!$B$8:$K$548,9,FALSE),"") ->  | K127: =IFERROR(IF(B127<>"",SUMIFS(SFAVOR!$J:$J,SFAVOR!$B:$B,$B127,SFAVOR!$F:$F,"<="&$C127)-SUMIF($B$7:B127,B127,$I$7:I127),""),"") -> 
G128: =IFERROR(VLOOKUP(B128,SFAVOR!$B$8:$K$548,9,FALSE),"") ->  | K128: =IFERROR(IF(B128<>"",SUMIFS(SFAVOR!$J:$J,SFAVOR!$B:$B,$B128,SFAVOR!$F:$F,"<="&$C128)-SUMIF($B$7:B128,B128,$I$7:I128),""),"") -> 
G129: =IFERROR(VLOOKUP(B129,SFAVOR!$B$8:$K$548,9,FALSE),"") ->  | K129: =IFERROR(IF(B129<>"",SUMIFS(SFAVOR!$J:$J,SFAVOR!$B:$B,$B129,SFAVOR!$F:$F,"<="&$C129)-SUMIF($B$7:B129,B129,$I$7:I129),""),"") -> 
G130: =IFERROR(VLOOKUP(B130,SFAVOR!$B$8:$K$548,9,FALSE),"") ->  | K130: =IFERROR(IF(B130<>"",SUMIFS(SFAVOR!$J:$J,SFAVOR!$B:$B,$B130,SFAVOR!$F:$F,"<="&$C130)-SUMIF($B$7:B130,B130,$I$7:I130),""),"") -> 
G131: =IFERROR(VLOOKUP(B131,SFAVOR!$B$8:$K$548,9,FALSE),"") ->  | K131: =IFERROR(IF(B131<>"",SUMIFS(SFAVOR!$J:$J,SFAVOR!$B:$B,$B131,SFAVOR!$F:$F,"<="&$C131)-SUMIF($B$7:B131,B131,$I$7:I131),""),"") -> 
G132: =IFERROR(VLOOKUP(B132,SFAVOR!$B$8:$K$548,9,FALSE),"") ->  | K132: =IFERROR(IF(B132<>"",SUMIFS(SFAVOR!$J:$J,SFAVOR!$B:$B,$B132,SFAVOR!$F:$F,"<="&$C132)-SUMIF($B$7:B132,B132,$I$7:I132),""),"") -> 
G133: =IFERROR(VLOOKUP(B133,SFAVOR!$B$8:$K$548,9,FALSE),"") ->  | K133: =IFERROR(IF(B133<>"",SUMIFS(SFAVOR!$J:$J,SFAVOR!$B:$B,$B133,SFAVOR!$F:$F,"<="&$C133)-SUMIF($B$7:B133,B133,$I$7:I133),""),"") -> 
G134: =IFERROR(VLOOKUP(B134,SFAVOR!$B$8:$K$548,9,FALSE),"") ->  | K134: =IFERROR(IF(B134<>"",SUMIFS(SFAVOR!$J:$J,SFAVOR!$B:$B,$B134,SFAVOR!$F:$F,"<="&$C134)-SUMIF($B$7:B134,B134,$I$7:I134),""),"") -> 
G135: =IFERROR(VLOOKUP(B135,SFAVOR!$B$8:$K$548,9,FALSE),"") ->  | K135: =IFERROR(IF(B135<>"",SUMIFS(SFAVOR!$J:$J,SFAVOR!$B:$B,$B135,SFAVOR!$F:$F,"<="&$C135)-SUMIF($B$7:B135,B135,$I$7:I135),""),"") -> 
G136: =IFERROR(VLOOKUP(B136,SFAVOR!$B$8:$K$548,9,FALSE),"") ->  | J136: =IFERROR(IF(OR(H136<>"",I136<>""),H136-I136,""),"") ->  | K136: =IFERROR(IF(B136<>"",SUMIFS(SFAVOR!$J:$J,SFAVOR!$B:$B,$B136,SFAVOR!$F:$F,"<="&$C136)-SUMIF($B$7:B136,B136,$I$7:I136),""),"") -> 
G137: =IFERROR(VLOOKUP(B137,SFAVOR!$B$8:$K$548,9,FALSE),"") ->  | K137: =IFERROR(IF(B137<>"",SUMIFS(SFAVOR!$J:$J,SFAVOR!$B:$B,$B137,SFAVOR!$F:$F,"<="&$C137)-SUMIF($B$7:B137,B137,$I$7:I137),""),"") -> 
G138: =IFERROR(VLOOKUP(B138,SFAVOR!$B$8:$K$548,9,FALSE),"") ->  | K138: =IFERROR(IF(B138<>"",SUMIFS(SFAVOR!$J:$J,SFAVOR!$B:$B,$B138,SFAVOR!$F:$F,"<="&$C138)-SUMIF($B$7:B138,B138,$I$7:I138),""),"") -> 
G139: =IFERROR(VLOOKUP(B139,SFAVOR!$B$8:$K$548,9,FALSE),"") ->  | K139: =IFERROR(IF(B139<>"",SUMIFS(SFAVOR!$J:$J,SFAVOR!$B:$B,$B139,SFAVOR!$F:$F,"<="&$C139)-SUMIF($B$7:B139,B139,$I$7:I139),""),"") -> 
G140: =IFERROR(VLOOKUP(B140,SFAVOR!$B$8:$K$548,9,FALSE),"") ->  | K140: =IFERROR(IF(B140<>"",SUMIFS(SFAVOR!$J:$J,SFAVOR!$B:$B,$B140,SFAVOR!$F:$F,"<="&$C140)-SUMIF($B$7:B140,B140,$I$7:I140),""),"") -> 
G141: =IFERROR(VLOOKUP(B141,SFAVOR!$B$8:$K$548,9,FALSE),"") ->  | K141: =IFERROR(IF(B141<>"",SUMIFS(SFAVOR!$J:$J,SFAVOR!$B:$B,$B141,SFAVOR!$F:$F,"<="&$C141)-SUMIF($B$7:B141,B141,$I$7:I141),""),"") -> 
G142: =IFERROR(VLOOKUP(B142,SFAVOR!$B$8:$K$548,9,FALSE),"") ->  | K142: =IFERROR(IF(B142<>"",SUMIFS(SFAVOR!$J:$J,SFAVOR!$B:$B,$B142,SFAVOR!$F:$F,"<="&$C142)-SUMIF($B$7:B142,B142,$I$7:I142),""),"") -> 
G143: =IFERROR(VLOOKUP(B143,SFAVOR!$B$8:$K$548,9,FALSE),"") ->  | K143: =IFERROR(IF(B143<>"",SUMIFS(SFAVOR!$J:$J,SFAVOR!$B:$B,$B143,SFAVOR!$F:$F,"<="&$C143)-SUMIF($B$7:B143,B143,$I$7:I143),""),"") -> 
G144: =IFERROR(VLOOKUP(B144,SFAVOR!$B$8:$K$548,9,FALSE),"") ->  | K144: =IFERROR(IF(B144<>"",SUMIFS(SFAVOR!$J:$J,SFAVOR!$B:$B,$B144,SFAVOR!$F:$F,"<="&$C144)-SUMIF($B$7:B144,B144,$I$7:I144),""),"") -> 
G145: =IFERROR(VLOOKUP(B145,SFAVOR!$B$8:$K$548,9,FALSE),"") ->  | K145: =IFERROR(IF(B145<>"",SUMIFS(SFAVOR!$J:$J,SFAVOR!$B:$B,$B145,SFAVOR!$F:$F,"<="&$C145)-SUMIF($B$7:B145,B145,$I$7:I145),""),"") -> 
G146: =IFERROR(VLOOKUP(B146,SFAVOR!$B$8:$K$548,9,FALSE),"") ->  | K146: =IFERROR(IF(B146<>"",SUMIFS(SFAVOR!$J:$J,SFAVOR!$B:$B,$B146,SFAVOR!$F:$F,"<="&$C146)-SUMIF($B$7:B146,B146,$I$7:I146),""),"") -> 
G147: =IFERROR(VLOOKUP(B147,SFAVOR!$B$8:$K$548,9,FALSE),"") ->  | K147: =IFERROR(IF(B147<>"",SUMIFS(SFAVOR!$J:$J,SFAVOR!$B:$B,$B147,SFAVOR!$F:$F,"<="&$C147)-SUMIF($B$7:B147,B147,$I$7:I147),""),"") -> 
G148: =IFERROR(VLOOKUP(B148,SFAVOR!$B$8:$K$548,9,FALSE),"") ->  | K148: =IFERROR(IF(B148<>"",SUMIFS(SFAVOR!$J:$J,SFAVOR!$B:$B,$B148,SFAVOR!$F:$F,"<="&$C148)-SUMIF($B$7:B148,B148,$I$7:I148),""),"") -> 
G149: =IFERROR(VLOOKUP(B149,SFAVOR!$B$8:$K$548,9,FALSE),"") ->  | K149: =IFERROR(IF(B149<>"",SUMIFS(SFAVOR!$J:$J,SFAVOR!$B:$B,$B149,SFAVOR!$F:$F,"<="&$C149)-SUMIF($B$7:B149,B149,$I$7:I149),""),"") -> 
G150: =IFERROR(VLOOKUP(B150,SFAVOR!$B$8:$K$548,9,FALSE),"") ->  | K150: =IFERROR(IF(B150<>"",SUMIFS(SFAVOR!$J:$J,SFAVOR!$B:$B,$B150,SFAVOR!$F:$F,"<="&$C150)-SUMIF($B$7:B150,B150,$I$7:I150),""),"") -> 
G151: =IFERROR(VLOOKUP(B151,SFAVOR!$B$8:$K$548,9,FALSE),"") ->  | K151: =IFERROR(IF(B151<>"",SUMIFS(SFAVOR!$J:$J,SFAVOR!$B:$B,$B151,SFAVOR!$F:$F,"<="&$C151)-SUMIF($B$7:B151,B151,$I$7:I151),""),"") -> 
G152: =IFERROR(VLOOKUP(B152,SFAVOR!$B$8:$K$548,9,FALSE),"") ->  | K152: =IFERROR(IF(B152<>"",SUMIFS(SFAVOR!$J:$J,SFAVOR!$B:$B,$B152,SFAVOR!$F:$F,"<="&$C152)-SUMIF($B$7:B152,B152,$I$7:I152),""),"") -> 
G153: =IFERROR(VLOOKUP(B153,SFAVOR!$B$8:$K$548,9,FALSE),"") ->  | K153: =IFERROR(IF(B153<>"",SUMIFS(SFAVOR!$J:$J,SFAVOR!$B:$B,$B153,SFAVOR!$F:$F,"<="&$C153)-SUMIF($B$7:B153,B153,$I$7:I153),""),"") -> 
G154: =IFERROR(VLOOKUP(B154,SFAVOR!$B$8:$K$548,9,FALSE),"") ->  | K154: =IFERROR(IF(B154<>"",SUMIFS(SFAVOR!$J:$J,SFAVOR!$B:$B,$B154,SFAVOR!$F:$F,"<="&$C154)-SUMIF($B$7:B154,B154,$I$7:I154),""),"") -> 
G155: =IFERROR(VLOOKUP(B155,SFAVOR!$B$8:$K$548,9,FALSE),"") ->  | K155: =IFERROR(IF(B155<>"",SUMIFS(SFAVOR!$J:$J,SFAVOR!$B:$B,$B155,SFAVOR!$F:$F,"<="&$C155)-SUMIF($B$7:B155,B155,$I$7:I155),""),"") -> 
G156: =IFERROR(VLOOKUP(B156,SFAVOR!$B$8:$K$548,9,FALSE),"") ->  | K156: =IFERROR(IF(B156<>"",SUMIFS(SFAVOR!$J:$J,SFAVOR!$B:$B,$B156,SFAVOR!$F:$F,"<="&$C156)-SUMIF($B$7:B156,B156,$I$7:I156),""),"") -> 
G157: =IFERROR(VLOOKUP(B157,SFAVOR!$B$8:$K$548,9,FALSE),"") ->  | K157: =IFERROR(IF(B157<>"",SUMIFS(SFAVOR!$J:$J,SFAVOR!$B:$B,$B157,SFAVOR!$F:$F,"<="&$C157)-SUMIF($B$7:B157,B157,$I$7:I157),""),"") -> 
G158: =IFERROR(VLOOKUP(B158,SFAVOR!$B$8:$K$548,9,FALSE),"") ->  | K158: =IFERROR(IF(B158<>"",SUMIFS(SFAVOR!$J:$J,SFAVOR!$B:$B,$B158,SFAVOR!$F:$F,"<="&$C158)-SUMIF($B$7:B158,B158,$I$7:I158),""),"") -> 
G159: =IFERROR(VLOOKUP(B159,SFAVOR!$B$8:$K$548,9,FALSE),"") ->  | K159: =IFERROR(IF(B159<>"",SUMIFS(SFAVOR!$J:$J,SFAVOR!$B:$B,$B159,SFAVOR!$F:$F,"<="&$C159)-SUMIF($B$7:B159,B159,$I$7:I159),""),"") -> 
G160: =IFERROR(VLOOKUP(B160,SFAVOR!$B$8:$K$548,9,FALSE),"") ->  | K160: =IFERROR(IF(B160<>"",SUMIFS(SFAVOR!$J:$J,SFAVOR!$B:$B,$B160,SFAVOR!$F:$F,"<="&$C160)-SUMIF($B$7:B160,B160,$I$7:I160),""),"") -> 
G161: =IFERROR(VLOOKUP(B161,SFAVOR!$B$8:$K$548,9,FALSE),"") ->  | K161: =IFERROR(IF(B161<>"",SUMIFS(SFAVOR!$J:$J,SFAVOR!$B:$B,$B161,SFAVOR!$F:$F,"<="&$C161)-SUMIF($B$7:B161,B161,$I$7:I161),""),"") -> 
G162: =IFERROR(VLOOKUP(B162,SFAVOR!$B$8:$K$548,9,FALSE),"") ->  | K162: =IFERROR(IF(B162<>"",SUMIFS(SFAVOR!$J:$J,SFAVOR!$B:$B,$B162,SFAVOR!$F:$F,"<="&$C162)-SUMIF($B$7:B162,B162,$I$7:I162),""),"") -> 
G163: =IFERROR(VLOOKUP(B163,SFAVOR!$B$8:$K$548,9,FALSE),"") ->  | K163: =IFERROR(IF(B163<>"",SUMIFS(SFAVOR!$J:$J,SFAVOR!$B:$B,$B163,SFAVOR!$F:$F,"<="&$C163)-SUMIF($B$7:B163,B163,$I$7:I163),""),"") -> 
G164: =IFERROR(VLOOKUP(B164,SFAVOR!$B$8:$K$548,9,FALSE),"") ->  | K164: =IFERROR(IF(B164<>"",SUMIFS(SFAVOR!$J:$J,SFAVOR!$B:$B,$B164,SFAVOR!$F:$F,"<="&$C164)-SUMIF($B$7:B164,B164,$I$7:I164),""),"") -> 
G165: =IFERROR(VLOOKUP(B165,SFAVOR!$B$8:$K$548,9,FALSE),"") ->  | K165: =IFERROR(IF(B165<>"",SUMIFS(SFAVOR!$J:$J,SFAVOR!$B:$B,$B165,SFAVOR!$F:$F,"<="&$C165)-SUMIF($B$7:B165,B165,$I$7:I165),""),"") -> 
G166: =IFERROR(VLOOKUP(B166,SFAVOR!$B$8:$K$548,9,FALSE),"") ->  | K166: =IFERROR(IF(B166<>"",SUMIFS(SFAVOR!$J:$J,SFAVOR!$B:$B,$B166,SFAVOR!$F:$F,"<="&$C166)-SUMIF($B$7:B166,B166,$I$7:I166),""),"") -> 
G167: =IFERROR(VLOOKUP(B167,SFAVOR!$B$8:$K$548,9,FALSE),"") ->  | K167: =IFERROR(IF(B167<>"",SUMIFS(SFAVOR!$J:$J,SFAVOR!$B:$B,$B167,SFAVOR!$F:$F,"<="&$C167)-SUMIF($B$7:B167,B167,$I$7:I167),""),"") -> 
G168: =IFERROR(VLOOKUP(B168,SFAVOR!$B$8:$K$548,9,FALSE),"") ->  | K168: =IFERROR(IF(B168<>"",SUMIFS(SFAVOR!$J:$J,SFAVOR!$B:$B,$B168,SFAVOR!$F:$F,"<="&$C168)-SUMIF($B$7:B168,B168,$I$7:I168),""),"") -> 
G169: =IFERROR(VLOOKUP(B169,SFAVOR!$B$8:$K$548,9,FALSE),"") ->  | K169: =IFERROR(IF(B169<>"",SUMIFS(SFAVOR!$J:$J,SFAVOR!$B:$B,$B169,SFAVOR!$F:$F,"<="&$C169)-SUMIF($B$7:B169,B169,$I$7:I169),""),"") -> 
G170: =IFERROR(VLOOKUP(B170,SFAVOR!$B$8:$K$548,9,FALSE),"") ->  | K170: =IFERROR(IF(B170<>"",SUMIFS(SFAVOR!$J:$J,SFAVOR!$B:$B,$B170,SFAVOR!$F:$F,"<="&$C170)-SUMIF($B$7:B170,B170,$I$7:I170),""),"") -> 
G171: =IFERROR(VLOOKUP(B171,SFAVOR!$B$8:$K$548,9,FALSE),"") ->  | K171: =IFERROR(IF(B171<>"",SUMIFS(SFAVOR!$J:$J,SFAVOR!$B:$B,$B171,SFAVOR!$F:$F,"<="&$C171)-SUMIF($B$7:B171,B171,$I$7:I171),""),"") -> 
G172: =IFERROR(VLOOKUP(B172,SFAVOR!$B$8:$K$548,9,FALSE),"") ->  | K172: =IFERROR(IF(B172<>"",SUMIFS(SFAVOR!$J:$J,SFAVOR!$B:$B,$B172,SFAVOR!$F:$F,"<="&$C172)-SUMIF($B$7:B172,B172,$I$7:I172),""),"") -> 
G173: =IFERROR(VLOOKUP(B173,SFAVOR!$B$8:$K$548,9,FALSE),"") ->  | K173: =IFERROR(IF(B173<>"",SUMIFS(SFAVOR!$J:$J,SFAVOR!$B:$B,$B173,SFAVOR!$F:$F,"<="&$C173)-SUMIF($B$7:B173,B173,$I$7:I173),""),"") -> 
G174: =IFERROR(VLOOKUP(B174,SFAVOR!$B$8:$K$548,9,FALSE),"") ->  | K174: =IFERROR(IF(B174<>"",SUMIFS(SFAVOR!$J:$J,SFAVOR!$B:$B,$B174,SFAVOR!$F:$F,"<="&$C174)-SUMIF($B$7:B174,B174,$I$7:I174),""),"") -> 
G175: =IFERROR(VLOOKUP(B175,SFAVOR!$B$8:$K$548,9,FALSE),"") ->  | K175: =IFERROR(IF(B175<>"",SUMIFS(SFAVOR!$J:$J,SFAVOR!$B:$B,$B175,SFAVOR!$F:$F,"<="&$C175)-SUMIF($B$7:B175,B175,$I$7:I175),""),"") -> 
G176: =IFERROR(VLOOKUP(B176,SFAVOR!$B$8:$K$548,9,FALSE),"") ->  | K176: =IFERROR(IF(B176<>"",SUMIFS(SFAVOR!$J:$J,SFAVOR!$B:$B,$B176,SFAVOR!$F:$F,"<="&$C176)-SUMIF($B$7:B176,B176,$I$7:I176),""),"") -> 
G177: =IFERROR(VLOOKUP(B177,SFAVOR!$B$8:$K$548,9,FALSE),"") ->  | K177: =IFERROR(IF(B177<>"",SUMIFS(SFAVOR!$J:$J,SFAVOR!$B:$B,$B177,SFAVOR!$F:$F,"<="&$C177)-SUMIF($B$7:B177,B177,$I$7:I177),""),"") -> 
G178: =IFERROR(VLOOKUP(B178,SFAVOR!$B$8:$K$548,9,FALSE),"") ->  | K178: =IFERROR(IF(B178<>"",SUMIFS(SFAVOR!$J:$J,SFAVOR!$B:$B,$B178,SFAVOR!$F:$F,"<="&$C178)-SUMIF($B$7:B178,B178,$I$7:I178),""),"") -> 
G179: =IFERROR(VLOOKUP(B179,SFAVOR!$B$8:$K$548,9,FALSE),"") ->  | K179: =IFERROR(IF(B179<>"",SUMIFS(SFAVOR!$J:$J,SFAVOR!$B:$B,$B179,SFAVOR!$F:$F,"<="&$C179)-SUMIF($B$7:B179,B179,$I$7:I179),""),"") -> 
G180: =IFERROR(VLOOKUP(B180,SFAVOR!$B$8:$K$548,9,FALSE),"") ->  | K180: =IFERROR(IF(B180<>"",SUMIFS(SFAVOR!$J:$J,SFAVOR!$B:$B,$B180,SFAVOR!$F:$F,"<="&$C180)-SUMIF($B$7:B180,B180,$I$7:I180),""),"") -> 
G181: =IFERROR(VLOOKUP(B181,SFAVOR!$B$8:$K$548,9,FALSE),"") ->  | K181: =IFERROR(IF(B181<>"",SUMIFS(SFAVOR!$J:$J,SFAVOR!$B:$B,$B181,SFAVOR!$F:$F,"<="&$C181)-SUMIF($B$7:B181,B181,$I$7:I181),""),"") -> 
G182: =IFERROR(VLOOKUP(B182,SFAVOR!$B$8:$K$548,9,FALSE),"") ->  | K182: =IFERROR(IF(B182<>"",SUMIFS(SFAVOR!$J:$J,SFAVOR!$B:$B,$B182,SFAVOR!$F:$F,"<="&$C182)-SUMIF($B$7:B182,B182,$I$7:I182),""),"") -> 
G183: =IFERROR(VLOOKUP(B183,SFAVOR!$B$8:$K$548,9,FALSE),"") ->  | K183: =IFERROR(IF(B183<>"",SUMIFS(SFAVOR!$J:$J,SFAVOR!$B:$B,$B183,SFAVOR!$F:$F,"<="&$C183)-SUMIF($B$7:B183,B183,$I$7:I183),""),"") -> 
G184: =IFERROR(VLOOKUP(B184,SFAVOR!$B$8:$K$548,9,FALSE),"") ->  | K184: =IFERROR(IF(B184<>"",SUMIFS(SFAVOR!$J:$J,SFAVOR!$B:$B,$B184,SFAVOR!$F:$F,"<="&$C184)-SUMIF($B$7:B184,B184,$I$7:I184),""),"") -> 
G185: =IFERROR(VLOOKUP(B185,SFAVOR!$B$8:$K$548,9,FALSE),"") ->  | K185: =IFERROR(IF(B185<>"",SUMIFS(SFAVOR!$J:$J,SFAVOR!$B:$B,$B185,SFAVOR!$F:$F,"<="&$C185)-SUMIF($B$7:B185,B185,$I$7:I185),""),"") -> 
G186: =IFERROR(VLOOKUP(B186,SFAVOR!$B$8:$K$548,9,FALSE),"") ->  | K186: =IFERROR(IF(B186<>"",SUMIFS(SFAVOR!$J:$J,SFAVOR!$B:$B,$B186,SFAVOR!$F:$F,"<="&$C186)-SUMIF($B$7:B186,B186,$I$7:I186),""),"") -> 
G187: =IFERROR(VLOOKUP(B187,SFAVOR!$B$8:$K$548,9,FALSE),"") ->  | K187: =IFERROR(IF(B187<>"",SUMIFS(SFAVOR!$J:$J,SFAVOR!$B:$B,$B187,SFAVOR!$F:$F,"<="&$C187)-SUMIF($B$7:B187,B187,$I$7:I187),""),"") -> 
G188: =IFERROR(VLOOKUP(B188,SFAVOR!$B$8:$K$548,9,FALSE),"") ->  | K188: =IFERROR(IF(B188<>"",SUMIFS(SFAVOR!$J:$J,SFAVOR!$B:$B,$B188,SFAVOR!$F:$F,"<="&$C188)-SUMIF($B$7:B188,B188,$I$7:I188),""),"") -> 
G189: =IFERROR(VLOOKUP(B189,SFAVOR!$B$8:$K$548,9,FALSE),"") ->  | K189: =IFERROR(IF(B189<>"",SUMIFS(SFAVOR!$J:$J,SFAVOR!$B:$B,$B189,SFAVOR!$F:$F,"<="&$C189)-SUMIF($B$7:B189,B189,$I$7:I189),""),"") -> 
G190: =IFERROR(VLOOKUP(B190,SFAVOR!$B$8:$K$548,9,FALSE),"") ->  | K190: =IFERROR(IF(B190<>"",SUMIFS(SFAVOR!$J:$J,SFAVOR!$B:$B,$B190,SFAVOR!$F:$F,"<="&$C190)-SUMIF($B$7:B190,B190,$I$7:I190),""),"") -> 
G191: =IFERROR(VLOOKUP(B191,SFAVOR!$B$8:$K$548,9,FALSE),"") ->  | K191: =IFERROR(IF(B191<>"",SUMIFS(SFAVOR!$J:$J,SFAVOR!$B:$B,$B191,SFAVOR!$F:$F,"<="&$C191)-SUMIF($B$7:B191,B191,$I$7:I191),""),"") -> 
G192: =IFERROR(VLOOKUP(B192,SFAVOR!$B$8:$K$548,9,FALSE),"") ->  | K192: =IFERROR(IF(B192<>"",SUMIFS(SFAVOR!$J:$J,SFAVOR!$B:$B,$B192,SFAVOR!$F:$F,"<="&$C192)-SUMIF($B$7:B192,B192,$I$7:I192),""),"") -> 
G193: =IFERROR(VLOOKUP(B193,SFAVOR!$B$8:$K$548,9,FALSE),"") ->  | K193: =IFERROR(IF(B193<>"",SUMIFS(SFAVOR!$J:$J,SFAVOR!$B:$B,$B193,SFAVOR!$F:$F,"<="&$C193)-SUMIF($B$7:B193,B193,$I$7:I193),""),"") -> 
G194: =IFERROR(VLOOKUP(B194,SFAVOR!$B$8:$K$548,9,FALSE),"") ->  | K194: =IFERROR(IF(B194<>"",SUMIFS(SFAVOR!$J:$J,SFAVOR!$B:$B,$B194,SFAVOR!$F:$F,"<="&$C194)-SUMIF($B$7:B194,B194,$I$7:I194),""),"") -> 
G195: =IFERROR(VLOOKUP(B195,SFAVOR!$B$8:$K$548,9,FALSE),"") ->  | K195: =IFERROR(IF(B195<>"",SUMIFS(SFAVOR!$J:$J,SFAVOR!$B:$B,$B195,SFAVOR!$F:$F,"<="&$C195)-SUMIF($B$7:B195,B195,$I$7:I195),""),"") -> 
G196: =IFERROR(VLOOKUP(B196,SFAVOR!$B$8:$K$548,9,FALSE),"") ->  | K196: =IFERROR(IF(B196<>"",SUMIFS(SFAVOR!$J:$J,SFAVOR!$B:$B,$B196,SFAVOR!$F:$F,"<="&$C196)-SUMIF($B$7:B196,B196,$I$7:I196),""),"") -> 

Sheet GENERAL (hidden)
B5: Concepto | C5: Comentario técnico / fiscal
B6: Inversiones y/o gastos en periodo preoperativo (Artículo 5 fracción VI LIVA) | C6: El IVA puede acreditarse o solicitarse en devolución antes de iniciar actividades gravadas, pero exige cumplir requisitos específicos (estimativas, documentación soporte, proyecto de inversión y ajustes posteriores). Si no se inicia la actividad gravada, procede reintegro actualizado y recargos. Riesgo frecuente de devolución rechazada por falta de materialidad o evidencia documental.
B7: Por error u omisión de operaciones en declaración | C7: Puede generar diferencias entre CFDI, declaraciones y contabilidad. Si la omisión afecta IVA trasladado o acreditable, pueden existir actualizaciones, recargos y multas. También puede derivar en cartas invitación o revisiones electrónicas.
B8: Acreditamiento superior al impuesto causado | C8: Puede originarse por errores de captura, acreditamientos improcedentes o desfases flujo/devengado. Debe validarse cumplimiento del artículo 5 LIVA (indispensabilidad, CFDI, pago efectivo, IVA separado y vinculación con actividades gravadas). Riesgo de devolución improcedente o rechazo de saldo a favor.
B9: Acreditamiento superior a impuesto causado por interpretación legal del IVA | C9: Ocurre cuando el contribuyente adopta criterios agresivos sobre acreditamiento, proporcionalidad o actividades no objeto. Debe documentarse criterio jurídico y soporte normativo para defensa.
B10: Tasa 0% por interpretación legal del contribuyente | C10: Riesgo alto cuando la tasa 0% se aplica sin fundamento expreso. La autoridad suele revisar materialidad, naturaleza del producto o servicio y clasificación legal. Debe existir soporte normativo específico.
B11: Tasa 0% por aplicación de regla miscelánea | C11: Algunas facilidades administrativas o reglas RMF pueden precisar supuestos operativos, pero no pueden ampliar beneficios más allá de la ley. Debe validarse vigencia y alcance de la regla.
B12: Tasa 0% criterio jurídico autorizado en proceso administrativo | C12: Cuando existe criterio normativo, criterio interno autorizado o resolución favorable, fortalece posición defensiva, aunque debe verificarse que el supuesto concreto coincida plenamente con el criterio aplicado.
B13: Tasa 0% por Artículo 2-A fracción I LIVA | C13: Corresponde principalmente a enajenación de ciertos bienes: animales y vegetales no industrializados, medicinas, productos destinados a alimentación (con excepciones), agua no gaseosa, maquinaria agrícola, fertilizantes, libros, entre otros. Debe validarse que el producto encuadre exactamente en el supuesto legal.
B14: Tasa 0% por Artículo 2-A fracción II LIVA | C14: Aplica a determinados servicios independientes como algunos agropecuarios, molienda de maíz o trigo, pasteurización de leche, suministro de agua doméstica, entre otros. Riesgo frecuente: clasificar servicios generales como agropecuarios sin cumplir condiciones.
B15: Tasa 0% por Artículo 2-A fracción III LIVA | C15: Corresponde al uso o goce temporal de maquinaria y equipo agrícola específico previsto en la ley. Debe cuidarse que el bien arrendado sea exactamente el contemplado en el artículo.
B16: Tasa 0% por Artículo 2-A fracción IV LIVA | C16: Corresponde principalmente a exportación de bienes y servicios en términos del artículo 29 LIVA. Debe existir evidencia documental de exportación y cumplimiento de requisitos regulatorios.
B268: Enero
B269: Febrero
B270: Marzo
B271: Abril
B272: Mayo
B273: Junio
B274: Julio
B275: Agosto
B276: Septiembre
B277: Octubre
B278: Noviembre
B279: Diciembre

Sheet EJEMPLOS (hidden)
B4: Registro venta de activo fijo
B6: Tipo póliza | C6: Dr | D6: No. | E6: 4 | F6: Fecha | G6: =TODAY() -> 2026-05-26
B8: Concepto | C8: Venta de automovil marca x con no. Motor x, fact. No. X
B10: No. Cta. | C10: Cuenta | D10: Concepto | F10: Debe | G10: Haber | I10: UUID_CFDI | J10: RFC | K10: Monto | L10: Moneda | M10: T.C.
C11: Depreciaciòn acumulada | F11: 100000
C12: Deudores div. | F12: 266800
C13: Equipo de transporte | G13: 300000
C14: IVA trasladado pend. De cobro | G14: =230000*0.16 -> 36800
C15: Utilidad en vta. De activo fijo | G15: 30000 | I15: Folio fiscal | J15: Del recepto | K15: =230000*1.16 -> 266800
C16: Utilidad fiscal en venta de activo fijo | F16: 23800
C17: Venta de activo fijo utilidad fiscal | G17: 23800
B19: Cobro de la venta del activo fijo
B21: Tipo póliza | C21: Ig | D21: No. | E21: 8 | F21: Fecha | G21: =TODAY() -> 2026-05-26
B23: Concepto | C23: Cobro fact. X venta activo fijo, contado, transferencia electronica de fondos, pago en una sola exhibicion, "NA"
B25: No. Cta. | C25: Cuenta | D25: Concepto | F25: Debe | G25: Haber
C26: Bancos | F26: =F12 -> 266800
C27: Deudores div. | G27: =F26 -> 266800
C28: IVA trasladado pendiente de cobro | F28: =G14 -> 36800
C29: IVA trasladado cobrado | G29: =F28 -> 36800
B32: ="Registro nomina " & IF(DAY(G34)<=15,1,2)& " quincena de " & TEXT(G34,"MMMM") -> Registro nomina 2 quincena de mayo
B34: Tipo póliza | C34: Dr | D34: No. | E34: 18 | F34: Fecha | G34: =TODAY() -> 2026-05-26
B36: Concepto | C36: =B32& " de "&YEAR(G34) -> Registro nomina 2 quincena de mayo de 2026
B38: No. Cta. | C38: Cuenta | D38: Concepto | F38: Debe | G38: Haber | I38: UUID_CFDI | J38: RFC | K38: Monto | L38: Moneda | M38: T.C.
C39: Gastos generales
C40: Sueldos y salarios | F40: 100000 | I40: Folio fiscal | J40: Todos | K40: =G45 -> 125800
C41: Tiempo extra | F41: 12000
C42: Bono | F42: 15000
C43: Despensa | F43: 21000
C44: Subsidio al empleo | F44: 1000
C45: Acreedores div. | G45: =SUM(F40:F44)-G47-G48 -> 125800
C46: Contribuciones por pagar
C47: Retenciòn ISR salarios | G47: 13400
C48: Retencion IMSS | G48: 9800
B51: Pago de la nomina
B53: Tipo póliza | C53: Eg | D53: No. | E53: 18 | F53: Fecha | G53: 2017-06-15
B55: Concepto | C55: ="Tr. 12234 pago " & MID(B32,10,LEN(B32)-9) -> Tr. 12234 pago nomina 2 quincena de mayo
B57: No. Cta. | C57: Cuenta | D57: Concepto | F57: Debe | G57: Haber | I57: Cuenta origen | J57: Banco origen nacional | K57: Banco origen extranjero | L57: Cuenta destino | M57: Banco destino nacional | N57: Banco destino extranjero | O57: Fecha | P57: Beneficiario | Q57: RFC | R57: Monto | S57: Moneda | T57: T.C.
C58: Acreedores div. | F58: =G45 -> 125800
C59: Bancos | G59: =F58 -> 125800 | I59: 98765 | J59: 012 | L59: 98765 | M59: 012 | O59: 42901 | P59: Banco | Q59: XAXX010101000 | R59: =G59 -> 125800
B62: Registro de una venta
B64: Tipo póliza | C64: Dr | D64: No. | E64: 1 | F64: Fecha | G64: =TODAY() -> 2026-05-26
B66: Concepto | C66: ="Ventas del dia"&" "& TEXT(TODAY(),"dd/mm/aaaa") -> Ventas del dia 26/05/2026
B68: No. Cta. | C68: Cuenta | D68: Concepto | F68: Debe | G68: Haber | I68: UUID_CFDI | J68: RFC | K68: Monto_total | L68: Moneda | M68: Tipo de cambio
C69: Clientes | F69: 500000
C70: Ventas | G70: =F69/1.16 -> 431034.4828 | I70: Folio fiscal | J70: Del receptor | K70: =F69 -> 500000
C71: IVA trasladado pendiente de cobro | G71: =G70*0.16 -> 68965.51724
B74: Registro de la cobranza
B76: Tipo póliza | C76: Ig | D76: No. | E76: 8 | F76: Fecha | G76: =TODAY() -> 2026-05-26
B78: Concepto | C78: ="Cobranza del dia " & TEXT(TODAY(),"dd/mm/aaaa") & " NA" -> Cobranza del dia 26/05/2026 NA
B80: No. Cta. | C80: Cuenta | D80: Concepto | F80: Debe | G80: Haber
C81: Bancos | F81: 100000
C82: Clientes | G82: 100000
C83: IVA trasladado pendiente de cobro | F83: =(F81/1.16)*0.16 -> 13793.10345
C84: IVA trasladado cobrado | G84: =F83 -> 13793.10345
B87: Compra de mercancia del extranjero
B89: Tipo póliza | C89: Dr | D89: No. | E89: 5 | F89: Fecha | G89: =TODAY() -> 2026-05-26
B91: Concepto | C91: Registro fact. X del proveedor X, con valor 100,000 dolares al t.c. 19.45
B93: No. Cta. | C93: Cuenta | D93: Concepto | F93: Debe | G93: Haber | I93: No. Factura | J93: TaxID | K93: Monto | L93: Moneda | M93: T.C.
C94: Mercancia en transito | F94: =100000*19.45 -> 1945000 | I94: 76 | J94: k98765 | K94: 100000 | L94: USD | M94: 19.45
C95: Proveedores extranjeros | G95: =F94 -> 1945000
B99: Pago al proveedor por casa de cambio
B101: Tipo póliza | C101: Eg | D101: No. | E101: 8 | F101: Fecha | G101: =TODAY() -> 2026-05-26
B103: Concepto | C103: Tr. 8765 casa de cambio, compra de 100,000 dolares al t.c. 19.20, para pago de factura x del proveer x.
B105: No. Cta. | C105: Cuenta | D105: Concepto | F105: Debe | G105: Haber | I105: UUID_CFDI | J105: RFC | K105: Monto | L105: Moneda | M105: T.C. | O105: Cuenta origen | P105: Banco origen nacional | Q105: Banco origen extranjero | R105: Cuenta destino | S105: Banco destino nacional | T105: Banco destino extranjero | U105: Fecha | V105: Beneficiario | W105: RFC | X105: Monto | Y105: Moneda | Z105: T.C. | AB105: Mètodo de pago | AC105: Fecha | AD105: Beneficiario | AE105: RFC | AF105: Monto | AG105: Moneda | AH105: T.C.
C106: Caja moneda extranjera | F106: =100000*19.2 -> 1920000 | I106: Folio fiscal | J106: Casa cambio | K106: =F106 -> 1920000
C107: Bancos | G107: =F106 -> 1920000 | O107: 98765 | P107: 002 | R107: 5432 | S107: 012 | U107: aplicaciòn | V107: Casa de camibo | X107: =G107 -> 1920000
C108: Proveedor del extranjero | F108: =G95 -> 1945000 | AB108: 99 | AC108: aplicaciòn | AD108: proveedor extranjero | AE108: XEXX010101000 | AF108: 100000 | AG108: USD | AH108: 19.2
C109: =C106 -> Caja moneda extranjera | G109: =G107 -> 1920000
C110: Utilidad en cambios | G110: =F108-G109 -> 25000
B113: Anticipo agenta aduanal
B115: Tipo póliza | C115: Eg | D115: No. | E115: 9 | F115: Fecha | G115: =TODAY() -> 2026-05-26
B117: Concepto | C117: Tr. 9876 agente aduanal, para gastos por cuenta de terceros
B119: No. Cta. | C119: Cuenta | D119: Concepto | F119: Debe | G119: Haber
C120: Deudores div. | F120: 50000
C121: Bancos | G121: 50000
B124: Registro de la cuenta de gastos
B126: Tipo póliza | C126: Dr | D126: No. | E126: 4 | F126: Fecha | G126: =TODAY() -> 2026-05-26
B128: Concepto | C128: Registro cuenta de gastos del p.i. xx xx xxxx xxxxxxx correspondiente a la fact. X
B130: No. Cta. | C130: Cuenta | D130: Concepto | F130: Debe | G130: Haber | I130: UUID_CFDI | J130: RFC | K130: Monto | L130: Moneda | M130: T.C. | O130: Mètodo de pago | P130: Fecha | Q130: Beneficiario | R130: RFC | S130: Monto | T130: Moneda | U130: T.C.
C131: Gastos de importación
C132: Limpieza contenedor | F132: 4000 | I132: Folio fiscal | J132: Emisor | K132: =F132*1.16 -> 4640 | O132: 11 | P132: comprobante | Q132: Emisor | R132: Emisor | S132: =K132 -> 4640
C133: Almacenaje | F133: 13000 | I133: Folio fiscal | J133: Emisor | K133: =F133*1.16 -> 15080 | O133: 11 | P133: comprobante | Q133: Emisor | R133: Emisor | S133: =K133 -> 15080
C134: Flete terrestre | F134: 18000 | I134: Folio fiscal | J134: Emisor | K134: =F134*1.16 -> 20880 | O134: 11 | P134: comprobante | Q134: Emisor | R134: Emisor | S134: =K134 -> 20880
C135: Custodia | F135: 7000 | I135: Folio fiscal | J135: Emisor | K135: =F135*1.16 -> 8120 | O135: 11 | P135: comprobante | Q135: Emisor | R135: Emisor | S135: =K135 -> 8120
C136: Servicios complementarios | D136: Cuenta de gastos No. 876 | F136: 4000 | O136: 11 | P136: comprobante | Q136: Emisor | R136: Emisor | S136: =F136 -> 4000
C137: Honorarios agente aduanal | F137: 14000 | I137: =I135 -> Folio fiscal | J137: Emisor | K137: =F137*1.16 -> 16240 | O137: 11 | P137: comprobante | Q137: Emisor | R137: Emisor | S137: =K137 -> 16240
C138: IVA acreditable pagado | F138: =SUM(F132:F135)*0.16 -> 6720
C139: Deudores diversos | G139: =F120 -> 50000
C140: Acreedores diversos | G140: =SUM(F132:F138)-G139 -> 16720
B143: Pasivo de las contribuciones
B145: Tipo póliza | C145: Dr | D145: No. | E145: 30 | F145: Fecha | G145: =DATE(YEAR(TODAY()),MONTH(TODAY()),DAY(EOMONTH(TODAY(),0))) -> 2026-05-31
B147: Concepto | C147: ="Registro contribuciones federales " & TEXT(TODAY(),"MMMM") & YEAR(TODAY()) -> Registro contribuciones federales mayo2026
B149: No. Cta. | C149: Cuenta | D149: Concepto | F149: Debe | G149: Haber
C150: Impuestos anticipados | F150: 12000
C151: IVA trasladado cobrado | F151: 45678.98
C152: IVA acreditable pagado | G152: 23456.78
C153: Retenciòn ISR de salarios | F153: 13450
C154: Contribuciones x pagar
C155: ISR | G155: =F150 -> 12000
C156: IVA | G156: 22222
C157: Ret. De ISR x salarios | G157: =F153 -> 13450
C158: Diferencia x redondeo | G158: 0.2
B161: Registro del pago de contribuciones
B163: Tipo póliza | C163: Eg | D163: No. | E163: 17 | F163: Fecha | G163: =DATE(YEAR(TODAY()),MONTH(TODAY())+1,17) -> 2026-06-17
B165: Concepto | C165: ="Tr. 87654 Pago de impuestos federales "& TEXT(DATE(YEAR(G163),MONTH(G163)-1,DAY(G163)),"mmmm")&" " & YEAR(G163) &", con No. De operaciòn 87654" -> Tr. 87654 Pago de impuestos federales mayo 2026, con No. De operaciòn 87654
B167: No. Cta. | C167: Cuenta | D167: Concepto | F167: Debe | G167: Haber | I167: Mètodo de pago | J167: Fecha | K167: Beneficiario | L167: RFC | M167: Monto | N167: Moneda | O167: T.C. | Q167: Cuenta origen | R167: Banco origen nacional | S167: Banco origen extranjero | T167: Cuenta destino | U167: Banco destino nacional | V167: Banco destino extranjero | W167: Fecha | X167: Beneficiario | Y167: RFC | Z167: Monto | AA167: Moneda | AB167: T.C.
C168: Contribuciones por pagar | F168: =G155+G156+G157 -> 47672
C169: ISR saldo a favor | G169: 12000 | I169: 17 | J169: Declaraciòn | K169: SAT | L169: SAT970701NN3 | M169: 12000
C170: Bancos | G170: =F168-G169 -> 35672 | Q170: 876543 | R170: 002 | T170: Linea captura | U170: 999 | W170: Pago | X170: Tesoreria de la federacion | Y170: XAXX010101000 | Z170: =G170 -> 35672
B173: Registro de viaticos
B175: Tipo póliza | C175: Eg | D175: No. | E175: 4 | F175: Fecha | G175: =TODAY() -> 2026-05-26
B177: Concepto | C177: Tr. 76543 empleado x, gastos por comprobar (viaticos)
B179: No. Cta. | C179: Cuenta | D179: Concepto | F179: Debe | G179: Haber
C180: Deudores div. | F180: 12000
C181: Bancos | G181: 12000
B184: Registro de comprobantes de viaticos
B186: Tipo póliza | C186: Dr | D186: No. | E186: 7 | F186: Fecha | G186: =TODAY() -> 2026-05-26
B188: Concepto | C188: Comprobaciòn de gastos (viaticos) de la transferencia no. 8765
B190: No. Cta. | C190: Cuenta | D190: Concepto | F190: Debe | G190: Haber | I190: UUID_CFDI | J190: RFC | K190: Monto | L190: Moneda | M190: T.C. | O190: Mètodo de pago | P190: Fecha | Q190: Beneficiario | R190: RFC | S190: Monto | T190: Moneda | U190: T.C.
C191: Gastos generales
C192: Hospedaje | F192: 2500 | I192: Folio fiscal | J192: Emisor | K192: =F192*1.16 -> 2900 | O192: 11 | P192: Comprobante | Q192: Comprobante | R192: Comprobante | S192: =K192 -> 2900
C193: Transporte | F193: 2000 | I193: Folio fiscal | J193: Emisor | K193: =F193*1.16 -> 2320 | O193: 11 | P193: Comprobante | Q193: Comprobante | R193: Comprobante | S193: =K193 -> 2320
C194: Alimentaciòn | F194: 3200 | I194: Folio fiscal | J194: Emisor | K194: 3712 | O194: 11 | P194: Comprobante | Q194: Comprobante | R194: Comprobante | S194: 3712
C195: Renta de automovil | F195: 1200 | I195: Folio fiscal | J195: Emisor | K195: 1392 | O195: 11 | P195: Comprobante | Q195: Comprobante | R195: Comprobante | S195: 1392
C196: Lavanderia | F196: 400 | O196: 11 | P196: Comprobante | Q196: Comprobante | R196: Comprobante | S196: =F196 -> 400
C197: Estacionamiento | F197: 120 | O197: 11 | P197: Comprobante | Q197: Comprobante | R197: Comprobante | S197: =F197 -> 120
C198: Farmacia | F198: 700 | O198: 11 | P198: Comprobante | Q198: Comprobante | R198: Comprobante | S198: 700
C199: Vales de caja chica | F199: 456 | O199: 11 | P199: Comprobante | Q199: Comprobante | R199: Comprobante | S199: 456
C200: IVA acreditable pagado | F200: =(F192+F193+F194+F195)*0.16 -> 1424
C201: Deudores diversos | G201: =F180 -> 12000
B203: Reposiciòn de caja chica
B205: Tipo póliza | C205: Dr | D205: No. | E205: 9 | F205: Fecha | G205: =TODAY() -> 2026-05-26
B207: Concepto | C207: Registro comprobantes caja chica semena 23 de 2017
B209: No. Cta. | C209: Cuenta | D209: Concepto | F209: Debe | G209: Haber | I209: UUID_CFDI | J209: RFC | K209: Monto | L209: Moneda | M209: T.C. | O209: Mètodo de pago | P209: Fecha | Q209: Beneficiario | R209: RFC | S209: Monto | T209: Moneda | U209: T.C.
C210: Gastos generales
C211: Papeleria y art. De oficina | F211: 500 | I211: Folio fiscal | J211: Del emisor | K211: =F211+F214 -> 580 | O211: 01 | P211: Del cfdi | Q211: El emisor | S211: =K211 -> 580
C212: Estacionamiento | D212: Estacionamiento folio 765 | F212: 70 | O212: 01 | P212: Del comprobante | Q212: El emisor | S212: =F212 -> 70
C213: Pasajes | D213: Pasajes vale de caja chica No. 87 | F213: 85 | O213: 01 | P213: Del vale | Q213: Contribuyente | R213: XAXX010101000 | S213: =F213 -> 85
C214: IVA acreditable pagado | F214: =F211*0.16 -> 80
C215: Acreedores div.
C216: Responsable de la caja chica | G216: =SUM(F211:F214) -> 735
B219: Reposiciòn de caja chica
B221: Tipo póliza | C221: Eg | D221: No. | E221: 9 | F221: Fecha | G221: =TODAY() -> 2026-05-26
B223: Concepto | C223: ="Ch. 9876 Responsable de caja chica, Reposiciòn de caja chica semana " & WEEKNUM(TODAY()) &" de " & YEAR(G221) -> Ch. 9876 Responsable de caja chica, Reposiciòn de caja chica semana 22 de 2026
B225: No. Cta. | C225: Cuenta | D225: Concepto | F225: Debe | G225: Haber
C226: Acreedores div. | F226: =G216 -> 735
C227: Bancos | G227: =F226 -> 735
B229: Artículo 33 RCFF.- Para los efectos del artículo 28, fracciones I y II del Código, se estará a lo siguiente:
B231: B. Los registros o asientos contables deberán:
B233: I. Ser analíticos y efectuarse en el mes en que se realicen las operaciones, actos o actividades a que se refieran, a más tardar dentro de los cinco días siguientes a la realización de la operación, acto o actividad;
B234: II. Integrarse en el libro diario, en forma descriptiva, todas las operaciones, actos o actividades siguiendo el orden cronológico en que éstos se efectúen, indicando el movimiento de cargo o abono que a cada una corresponda, así como integrarse los nombres de las cuentas de la contabilidad, su saldo al final del periodo de registro inmediato anterior, el total del movimiento de cargo o abono a cada cuenta en el periodo y su saldo final. Podrán llevarse libros diario y mayor por establecimientos o dependencias, por tipos de actividad o por cualquier otra clasificación, pero en todos los casos deberán existir los libros diario y mayor general en los que se concentren todas las operaciones del contribuyente;
B235: III. Permitir la identificación de cada operación, acto o actividad y sus características, relacionándolas con los folios asignados a los comprobantes fiscales o con la documentación comprobatoria, de tal forma que pueda identificarse la forma de pago, las distintas contribuciones, tasas y cuotas, incluyendo aquellas operaciones, actos o actividades por las que no se deban pagar contribuciones, de acuerdo a la operación, acto o actividad de que se trate;
B236: IV. Permitir la identificación de las inversiones realizadas relacionándolas con la documentación comprobatoria o con los comprobantes fiscales, de tal forma que pueda precisarse la fecha de adquisición del bien o de efectuada la inversión, su descripción, el monto original de la inversión, el porcentaje e importe de su deducción anual, en su caso, así como la fecha de inicio de su deducción;
B237: V. Relacionar cada operación, acto o actividad con los saldos que den como resultado las cifras finales de las cuentas;
B238: VI. Formular los estados de posición financiera, de resultados, de variaciones en el capital contable, de origen y aplicación de recursos, así como las balanzas de comprobación, incluyendo las cuentas de orden y las notas a dichos estados;
B239: VII. Relacionar los estados de posición financiera con las cuentas de cada operación;
B240: VIII. Identificar las contribuciones que se deban cancelar o devolver, en virtud de devoluciones que se reciban y descuentos o bonificaciones que se otorguen conforme a las disposiciones fiscales;
B241: IX. Comprobar el cumplimiento de los requisitos relativos al otorgamiento de estímulos fiscales y de subsidios;
B242: X. Identificar los bienes distinguiendo, entre los adquiridos o producidos, los correspondientes a materias primas y productos terminados o semiterminados, los enajenados, así como los destinados a donación o, en su caso, destrucción;
B243: XI. Plasmarse en idioma español y consignar los valores en moneda nacional. Cuando la información de los comprobantes fiscales o de los datos y documentación que integran la contabilidad estén en idioma distinto al español, o los valores se consignen en moneda extranjera, deberán acompañarse de la traducción correspondiente y señalar el tipo de cambio utilizado por cada operación;
B244: XII. Establecer por centro de costos, identificando las operaciones, actos o actividades de cada sucursal o establecimiento, incluyendo aquéllos que se localicen en el extranjero;
B245: XIII. Señalar la fecha de realización de la operación, acto o actividad, su descripción o concepto, la cantidad o unidad de medida en su caso, la forma de pago de la operación, acto o actividad, especificando si fue de contado, a crédito, a plazos o en parcialidades, y el medio de pago o de extinción de dicha obligación, según corresponda. Tratándose de operaciones a crédito, a plazos o en parcialidades, por cada pago o abono que se reciba o se realice, incluyendo el anticipo o enganche según corresponda. Además de lo señalado en el párrafo anterior, deberán registrar el monto del pago, precisando si se efectúa en efectivo, transferencia interbancaria de fondos, cheque nominativo para abono en cuenta, tarjeta de débito, crédito o de servicios, monedero electrónico o por cualquier otro medio. Cuando el pago se realice en especie o permuta, deberá indicarse el tipo de bien o servicio otorgado como contraprestación y su valor;
B246: XIV. Permitir la identificación de los depósitos y retiros en las cuentas bancarias abiertas a nombre del contribuyente y conciliarse contra las operaciones realizadas y su documentación soporte, como son los estados de cuenta emitidos por las entidades financieras;
B247: XV. Los registros de inventarios de mercancías, materias primas, productos en proceso y terminados, en los que se llevará el control sobre los mismos, que permitan identificar cada unidad, tipo de mercancía o producto en proceso y fecha de adquisición o enajenación según se trate, así como el aumento o la disminución en dichos inventarios y las existencias al inicio y al final de cada mes y al cierre del ejercicio fiscal, precisando su fecha de entrega o recepción, así como si se trata de una devolución, donación o destrucción, cuando se den estos supuestos. Para efectos del párrafo anterior, en el control de inventarios deberá identificarse el método de valuación utilizado y la fecha a partir de la cual se usa, ya sea que se trate del método de primeras entradas primeras salidas, últimas entradas primeras salidas, costo identificado, costo promedio o detallista según corresponda;
B248: XVI. Los registros relativos a la opción de diferimiento de la causación de contribuciones conforme a las disposiciones fiscales, en el caso que se celebren contratos de arrendamiento financiero. Dichos registros deberán permitir identificar la parte correspondiente de las operaciones en cada ejercicio fiscal, inclusive mediante cuentas de orden;
B249: XVII. El control de los donativos de los bienes recibidos por las donatarias autorizadas en términos de la Ley del Impuesto sobre la Renta, el cual deberá permitir identificar a los donantes, los bienes recibidos, los bienes entregados a sus beneficiarios, las cuotas de recuperación que obtengan por los bienes recibidos en donación y el registro de la destrucción o donación de las mercancías o bienes en el ejercicio en el que se efectúen, y
B250: XVIII. Contener el impuesto al valor agregado que le haya sido trasladado al contribuyente y el que haya pagado en la importación, correspondiente a la parte de sus gastos e inversiones, conforme a los supuestos siguientes: a) La adquisición de bienes, de servicios y el uso o goce temporal de bienes, que se utilicen exclusivamente para realizar sus actividades por las que deban pagar el impuesto; b) La adquisición de bienes, de servicios y el uso o goce temporal de bienes, que se utilicen exclusivamente para realizar sus actividades por las que no deban pagar el impuesto, y c) La adquisición de bienes, de servicios y el uso o goce temporal de bienes, que se utilicen indistintamente para realizar tanto actividades por las que se deba pagar el impuesto, como aquéllas por las que no se está obligado al pago del mismo. Cuando el destino de los bienes o servicios varíe y se deba efectuar el ajuste del acreditamiento previsto en el artículo 5o.-A de la Ley del Impuesto al Valor Agregado, se deberá registrar su efecto en la contabilidad.

Sheet CLAVESPS (hidden)
B2: c_ClaveProdServ | C2: Descripción | D2: Palabras similares | G2: Catálogo de claves de unidad de medida | J2: Cátalogo de formas de pago | M2: Catálogo de moneda | P2: Catálogo tipo de comprobante | S2: Catálogo de régimen fiscal | V2: Catálogo del uso del CFDI | Y2: Catálogo tipo de relación | AB2: Catálogo metodo de pago | AE2: Catálogo exportación V. 4.0 | AH2: Catálogo objeto V. 4.0 | AK2: Catálogo periodicidad V. 4.0 | AN2: Catálogo meses V. 4.0
B3: 01010101 | C3: No existe en el catálogo | D3: Público en general | G3: c_ClaveUnidad | H3: Nombre | J3: c_FormaPago | K3: Descripción | M3: c_Moneda | N3: Descripción | P3: c_TipoDeComprobante | Q3: Descripción | S3: c_RegimenFiscal | T3: Descripción | V3: c_UsoCFDI | W3: Descripción | Y3: c_TipoRelacion | Z3: Descripción | AB3: c_MetodoPago | AC3: Descripción | AE3: Clave | AF3: Descripción | AH3: Clave | AI3: Descripción | AK3: Clave | AL3: Descripción | AN3: Clave | AO3: Descripción
B4: 10101500 | C4: Animales vivos de granja | G4: 18 | H4: Tambor de cincuenta y cinco galones (EUA) | J4: 1 | K4: Efectivo | M4: AED | N4: Dirham de EAU | P4: I | Q4: Ingreso | S4: 601 | T4: General de Ley Personas Morales | V4: G01 | W4: Adquisición de mercancias | Y4: 01 | Z4: Nota de crédito de los documentos relacionados | AB4: PUE | AC4: Pago en una sola exhibición | AE4: 1 | AF4: No aplica | AH4: 1 | AI4: No objeto de impuesto. | AK4: 1 | AL4: Diario | AN4: 1 | AO4: Enero
B5: 10101501 | C5: Gatos vivos | G5: 19 | H5: Camión cisterna | J5: 2 | K5: Cheque nominativo | M5: AFN | N5: Afghani | P5: E | Q5: Egreso | S5: 603 | T5: Personas Morales con Fines no Lucrativos | V5: G02 | W5: Devoluciones, descuentos o bonificaciones | Y5: 02 | Z5: Nota de débito de los documentos relacionados | AB5: PPD | AC5: Pago en parcialidades o diferido | AE5: 2 | AF5: Definitiva | AH5: 2 | AI5: Sí objeto de impuesto. | AK5: 2 | AL5: Semanal | AN5: 2 | AO5: Febrero
B6: 10101502 | C6: Perros | G6: 26 | H6: Tonelada real | J6: 3 | K6: Transferencia electrónica de fondos | M6: ALL | N6: Lek | P6: T | Q6: Traslado | S6: 605 | T6: Sueldos y Salarios e Ingresos Asimilados a Salarios | V6: G03 | W6: Gastos en general | Y6: 03 | Z6: Devolución de mercancía sobre facturas o traslados previos | AE6: 3 | AF6: Temporal | AH6: 3 | AI6: Sí objeto del impuesto y no obligado al desglose. | AK6: 3 | AL6: Quincenal | AN6: 3 | AO6: Marzo
B7: 10101504 | C7: Visón | G7: 29 | H7: Libra por mil pies cuadrados | J7: 4 | K7: Tarjeta de crédito | M7: AMD | N7: Dram armenio | P7: N | Q7: Nómina | S7: 606 | T7: Arrendamiento | V7: I01 | W7: Construcciones | Y7: 04 | Z7: Sustitución de los CFDI previos | AH7: 4 | AI7: Sí objeto del impuesto y no causa impuesto. | AK7: 4 | AL7: Mensual | AN7: 4 | AO7: Abril
B8: 10101505 | C8: Ratas | G8: 30 | H8: Día de potencia de caballos por tonelada métrica de aire seco | J8: 5 | K8: Monedero electrónico | M8: ANG | N8: Florín antillano neerlandés | S8: 608 | T8: Demás ingresos | V8: I02 | W8: Mobilario y equipo de oficina por inversiones | Y8: 05 | Z8: Traslados de mercancias facturados previamente | AK8: 5 | AL8: Bimestral | AN8: 5 | AO8: Mayo
B9: 10101506 | C9: Caballos | D9: Equinos, Potrancas, Potras, Potrillos, Potros, Yeguas | G9: 31 | H9: Pescar | J9: 6 | K9: Dinero electrónico | M9: AOA | N9: Kwanza | P9: P | Q9: Pago | S9: 609 | T9: Consolidación | V9: I03 | W9: Equipo de transporte | Y9: 06 | Z9: Factura generada por los traslados previos | AN9: 6 | AO9: Junio
B10: 10101507 | C10: Ovejas | D10: Borregos, Carneros | G10: 32 | H10: Kilogramo por tonelada métrica seca del aire | J10: 8 | K10: Vales de despensa | M10: ARS | N10: Peso Argentino | S10: 610 | T10: Residentes en el Extranjero sin Establecimiento Permanente en México | V10: I04 | W10: Equipo de computo y accesorios | Y10: 07 | Z10: CFDI por aplicación de anticipo | AN10: 7 | AO10: Julio
B11: 10101508 | C11: Cabras | D11: Borregos cimarrones, Cabritos, Cabros, Carnero de las Rocosas, Chivas, Chivatos, Chivos, Irascos, Machos cabríos, Chivos | G11: 36 | H11: Pie cúbico por minuto por pie cuadrado | J11: 12 | K11: Dación en pago | M11: AUD | N11: Dólar Australiano | S11: 611 | T11: Ingresos por Dividendos (socios y accionistas) | V11: I05 | W11: Dados, troqueles, moldes, matrices y herramental | Y11: 08 | Z11: Factura generada por pagos en parcialidades | AN11: 8 | AO11: Agosto
B12: 10101509 | C12: Asnos | D12: Borricos, Burros | G12: 44 | H12: Bolsa a granel de quinientos kilos | J12: 13 | K12: Pago por subrogación | M12: AWG | N12: Aruba Florin | S12: 612 | T12: Personas Físicas con Actividades Empresariales y Profesionales | V12: I06 | W12: Comunicaciones telefónicas | Y12: 09 | Z12: Factura generada por pagos diferidos | AN12: 9 | AO12: Septiembre
B13: 10101510 | C13: Ratones | G13: 45 | H13: Bolsa a granel de trescientos kilos | J13: 14 | K13: Pago por consignación | M13: AZN | N13: Azerbaijanian Manat | S13: 614 | T13: Ingresos por intereses | V13: I07 | W13: Comunicaciones satelitales | AN13: 10 | AO13: Octubre
B14: 10101511 | C14: Cerdos | D14: Cerdo montés, Chanchos, Chanchos almizcleros, Chanchos de monte, Cochinillos, Cochinos, Cochinos de monte, Cuche, Cuinos, Gorrinos, Jabalíes americanos, Lechones, Cochinos de monte, Pecaríes, Porcinos, Puercos, Puercos de monte, Tayatos | G14: 46 | H14: Bolsa a granel de cincuenta libras | J14: 15 | K14: Condonación | M14: BAM | N14: Convertibles marca | S14: 616 | T14: Sin obligaciones fiscales | V14: I08 | W14: Otra maquinaria y equipo | AN14: 11 | AO14: Noviembre
B15: 10101512 | C15: Conejos | D15: Liebres | G15: 47 | H15: Bolso de cincuenta libras | J15: 17 | K15: Compensación | M15: BBD | N15: Dólar de Barbados | S15: 620 | T15: Sociedades Cooperativas de Producción que optan por diferir sus ingresos | V15: D01 | W15: Honorarios médicos, dentales y gastos hospitalarios. | AN15: 12 | AO15: Diciembre
B16: 10101513 | C16: Cobayas o conejillos de indias | D16: Chanchito de Indias, Cobayos, Cuilo, Cuyo | G16: 48 | H16: Carga masiva | J16: 23 | K16: Novación | M16: BDT | N16: Taka | S16: 621 | T16: Incorporación Fiscal | V16: D02 | W16: Gastos médicos por incapacidad o discapacidad | AN16: 13 | AO16: Enero-Febrero
B17: 10101514 | C17: Primates | D17: Changos, Chimpancés, Gorilas, Lémures, Macacos, Micos, Monos, Orangutanes, Simios, Monos | G17: 53 | H17: Kilogramo teórico | J17: 24 | K17: Confusión | M17: BGN | N17: Lev búlgaro | S17: 622 | T17: Actividades Agrícolas, Ganaderas, Silvícolas y Pesqueras | V17: D03 | W17: Gastos funerales. | AN17: 14 | AO17: Marzo-Abril
B18: 10101515 | C18: Armadillos | D18: Toches | G18: 54 | H18: Tonelada teórica (UK) | J18: 25 | K18: Remisión de deuda | M18: BHD | N18: Dinar de Bahrein | S18: 623 | T18: Opcional para Grupos de Sociedades | V18: D04 | W18: Donativos. | AN18: 15 | AO18: Mayo-Junio
B19: 10101516 | C19: Ganado vacuno | D19: Bueyes, Búfalos, Cebús, Otros vacunos o bovinos, Toros, Vacas | G19: 62 | H19: Por ciento por 1000 horas | J19: 26 | K19: Prescripción o caducidad | M19: BIF | N19: Burundi Franc | S19: 624 | T19: Coordinados | V19: D05 | W19: Intereses reales efectivamente pagados por créditos hipotecarios (casa habitación). | AN19: 16 | AO19: Julio-Agosto
B20: 10101517 | C20: Camellos | D20: Dromedarios | G20: 63 | H20: Tasa de fracaso en el tiempo | J20: 27 | K20: A satisfacción del acreedor | M20: BMD | N20: Dólar de Bermudas | S20: 628 | T20: Hidrocarburos | V20: D06 | W20: Aportaciones voluntarias al SAR. | AN20: 17 | AO20: Septiembre-Octubre
B21: 10101600 | C21: Pájaros y aves de corral vivos | G21: 64 | H21: Libra por pulgada cuadrada, calibre | J21: 28 | K21: Tarjeta de débito | M21: BND | N21: Dólar de Brunei | S21: 607 | T21: Régimen de Enajenación o Adquisición de Bienes | V21: D07 | W21: Primas por seguros de gastos médicos. | AN21: 18 | AO21: Noviembre-Diciembre
B22: 10101601 | C22: Pollos vivos | D22: Gallinas, Gallinas de guinea, Gallos, Pintadas, Pollitos | G22: 66 | H22: Oersted | J22: 29 | K22: Tarjeta de servicios | M22: BOB | N22: Boliviano | S22: 629 | T22: De los Regímenes Fiscales Preferentes y de las Empresas Multinacionales | V22: D08 | W22: Gastos de transportación escolar obligatoria.
B23: 10101602 | C23: Patos vivos | G23: 69 | H23: Escala específica de prueba | J23: 30 | K23: Aplicación de anticipos | M23: BOV | N23: Mvdol | S23: 630 | T23: Enajenación de acciones en bolsa de valores | V23: D09 | W23: Depósitos en cuentas para el ahorro, primas que tengan como base planes de pensiones.
B24: 10101603 | C24: Pavos vivos | D24: Gallipavos, Guajolotes, Pavos salvajes | G24: 71 | H24: Voltios amperios por libra | J24: 31 | K24: Intermediario pagos | M24: BRL | N24: Real brasileño | S24: 615 | T24: Régimen de los ingresos por obtención de premios | V24: D10 | W24: Pagos por servicios educativos (colegiaturas)
B25: 10101604 | C25: Gansos vivos | G25: 72 | H25: Vatio por libra | J25: 99 | K25: Por definir | M25: BSD | N25: Dólar de las Bahamas | S25: 626 | T25: Régimen Simplificado de Confianza | V25: P01 | W25: Por definir
B26: 10101605 | C26: Faisanes vivos | G26: 73 | H26: Amperios por centímetro | M26: BTN | N26: Ngultrum
B27: 10101700 | C27: Peces vivos | G27: 76 | H27: Gauss | M27: BWP | N27: Pula
B28: 10101701 | C28: Salmones vivos | G28: 78 | H28: Kilogauss | M28: BYR | N28: Rublo bielorruso | S28: Catálogo de régimen fiscal V.4.0 | V28: Catálogo del uso del CFDI V 4.0
B29: 10101702 | C29: Trucha viva | G29: 84 | H29: Kilopound-force por pulgada cuadrada | M29: BZD | N29: Dólar de Belice | S29: c_RegimenFiscal | T29: Descripción | V29: c_UsoCFDI | W29: Descripción
B30: 10101703 | C30: Tilapia viva | D30: Mojarra | G30: 90 | H30: Saybold segundo universal | M30: CAD | N30: Dolar Canadiense | S30: 601 | T30: General de Ley Personas Morales | V30: G01 | W30: Adquisición de mercancías.
B31: 10101704 | C31: Carpa viva | G31: 92 | H31: Calorías por centímetro cúbico | M31: CDF | N31: Franco congoleño | S31: 603 | T31: Personas Morales con Fines no Lucrativos | V31: G02 | W31: Devoluciones, descuentos o bonificaciones.
B32: 10101705 | C32: Anguilas vivas | G32: 93 | H32: Calorías por gramo | M32: CHE | N32: WIR Euro | S32: 605 | T32: Sueldos y Salarios e Ingresos Asimilados a Salarios | V32: G03 | W32: Gastos en general.
B33: 10101800 | C33: Mariscos e invertebrados acuáticos vivos | G33: 94 | H33: Unidad de curl | M33: CHF | N33: Franco Suizo | S33: 606 | T33: Arrendamiento | V33: I01 | W33: Construcciones.
B34: 10101801 | C34: Camarón vivo | D34: Esquilas | G34: 95 | H34: Veinte mil galones | M34: CHW | N34: Franc WIR | S34: 607 | T34: Régimen de Enajenación o Adquisición de Bienes | V34: I02 | W34: Mobiliario y equipo de oficina por inversiones.
B35: 10101802 | C35: Almejas vivas | G35: 96 | H35: Diez mil galones (US) | M35: CLF | N35: Unidad de Fomento | S35: 608 | T35: Demás ingresos | V35: I03 | W35: Equipo de transporte.
B36: 10101803 | C36: Mejillones vivos | G36: 97 | H36: Diez kilos de tambor | M36: CLP | N36: Peso chileno | S36: 610 | T36: Residentes en el Extranjero sin Establecimiento Permanente en México | V36: I04 | W36: Equipo de computo y accesorios.
B37: 10101804 | C37: Ostras vivas | G37: 98 | H37: Quince kilos de tambor | M37: CNY | N37: Yuan Renminbi | S37: 611 | T37: Ingresos por Dividendos (socios y accionistas) | V37: I05 | W37: Dados, troqueles, moldes, matrices y herramental.
B38: 10101805 | C38: Cangrejos vivos | G38: 05 | H38: Ascensor | M38: COP | N38: Peso Colombiano | S38: 612 | T38: Personas Físicas con Actividades Empresariales y Profesionales | V38: I06 | W38: Comunicaciones telefónicas.
B39: 10101806 | C39: Abulones vivos | D39: Orejas de mar | G39: 06 | H39: Pequeño aerosol | M39: COU | N39: Unidad de Valor real | S39: 614 | T39: Ingresos por intereses | V39: I07 | W39: Comunicaciones satelitales.
B40: 10101807 | C40: Pulpo vivo | D40: Octópodo | G40: 08 | H40: Montón de calor | M40: CRC | N40: Colón costarricense | S40: 615 | T40: Régimen de los ingresos por obtención de premios | V40: I08 | W40: Otra maquinaria y equipo.
B41: 10101808 | C41: Calamar vivo | G41: 10 | H41: Grupos | M41: CUC | N41: Peso Convertible | S41: 616 | T41: Sin obligaciones fiscales | V41: D01 | W41: Honorarios médicos, dentales y gastos hospitalarios.
B42: 10101809 | C42: Sanguijuelas | D42: Hirudineas, Hirudos, Hirudíneo | G42: 11 | H42: Equipos | M42: CUP | N42: Peso Cubano | S42: 620 | T42: Sociedades Cooperativas de Producción que optan por diferir sus ingresos | V42: D02 | W42: Gastos médicos por incapacidad o discapacidad.
B43: 10101900 | C43: Insectos vivos | G43: 13 | H43: Raciones | M43: CVE | N43: Cabo Verde Escudo | S43: 621 | T43: Incorporación Fiscal | V43: D03 | W43: Gastos funerales.
B44: 10101901 | C44: Mariposas | G44: 14 | H44: Shot | M44: CZK | N44: Corona checa | S44: 622 | T44: Actividades Agrícolas, Ganaderas, Silvícolas y Pesqueras | V44: D04 | W44: Donativos.
B45: 10101902 | C45: Escarabajos | D45: Mariquitas, Sanjuaneros | G45: 15 | H45: Palo, medida militar. | M45: DJF | N45: Franco de Djibouti | S45: 623 | T45: Opcional para Grupos de Sociedades | V45: D05 | W45: Intereses reales efectivamente pagados por créditos hipotecarios (casa habitación).
B46: 10101903 | C46: Abejas | G46: 16 | H46: Tambor de 115 kilogramos | M46: DKK | N46: Corona danesa | S46: 624 | T46: Coordinados | V46: D06 | W46: Aportaciones voluntarias al SAR.
B47: 10101904 | C47: Gusanos de seda | D47: Crisálida, Larva, Oruga | G47: 17 | H47: Tambor de cien libras | M47: DOP | N47: Peso Dominicano | S47: 625 | T47: Régimen de las Actividades Empresariales con ingresos a través de Plataformas Tecnológicas | V47: D07 | W47: Primas por seguros de gastos médicos.
B48: 10102000 | C48: Animales salvajes vivos | G48: 1A | H48: Milla de carros | M48: DZD | N48: Dinar argelino | S48: 626 | T48: Régimen Simplificado de Confianza | V48: D08 | W48: Gastos de transportación escolar obligatoria.
B49: 10102001 | C49: Elefantes | D49: Paquidermos | G49: 1B | H49: Recuento de automóviles | M49: EGP | N49: Libra egipcia | V49: D09 | W49: Depósitos en cuentas para el ahorro, primas que tengan como base planes de pensiones.
B50: 10102002 | C50: Zorros vivos | D50: Zorras | G50: 1C | H50: Conteo de locomotoras | M50: ERN | N50: Nakfa | V50: D10 | W50: Pagos por servicios educativos (colegiaturas).
B51: 10102100 | C51: Huevos de aves para incubar | G51: 1D | H51: Caboose count | M51: ETB | N51: Birr etíope | V51: S01 | W51: Sin efectos fiscales.
B52: 10111300 | C52: Accesorios, equipo y tratamientos para los animales domésticos | D52: Accesorios, equipo y medicamentos para animales domésticos | G52: 1E | H52: Coche vacío | M52: EUR | N52: Euro | V52: CP01 | W52: Pagos
B53: 10111301 | C53: Juguetes para mascotas | G53: 1F | H53: Milla de tren | M53: FJD | N53: Dólar de Fiji | V53: CN01 | W53: Nómina
B54: 10111302 | C54: Productos para el aseo y cuidado de mascotas | G54: 1G | H54: Galón del uso del combustible (los EUA) | M54: FKP | N54: Libra malvinense | V54: P01 | W54: Por definir
B55: 10111303 | C55: Equipo para el manejo de desperdicios de las mascotas | G55: 1H | H55: Milla de caboose | M55: GBP | N55: Libra Esterlina
B56: 10111304 | C56: Tazones o equipo para alimentación de mascotas | G56: 1I | H56: Tipo de interés fijo | M56: GEL | N56: Lari
B57: 10111305 | C57: Tratamientos medicados para mascotas | D57: Tratamientos medicinales para mascotas | G57: 1J | H57: Tonelada milla | M57: GHS | N57: Cedi de Ghana
B58: 10111306 | C58: Kits para el entrenamiento de mascotas domésticas | G58: 1K | H58: Milla locomotora | M58: GIP | N58: Libra de Gibraltar
B59: 10111307 | C59: Cobijas para mascotas | D59: Mantas para mascotas, Sábanas para mascotas | G59: 1L | H59: Recuento total de automóviles | M59: GMD | N59: Dalasi
B60: 10121500 | C60: Pienso para ganado | D60: Alimento para ganado | G60: 1M | H60: Milla total del coche | M60: GNF | N60: Franco guineano
B61: 10121501 | C61: Salvado de trigo puro | G61: 1X | H61: Cuarto de milla | M61: GTQ | N61: Quetzal
B62: 10121502 | C62: Avena para forraje | G62: 20 | H62: Contenedores de veinte pies | M62: GYD | N62: Dólar guyanés
B63: 10121503 | C63: Maíz para forraje | G63: 21 | H63: Contenedor de cuarenta pies | M63: HKD | N63: Dolar De Hong Kong
B64: 10121504 | C64: Sorgo para forraje | G64: 22 | H64: Decilitro por gramo | M64: HNL | N64: Lempira
B65: 10121505 | C65: Heno | G65: 23 | H65: Gramo por centímetro cúbico | M65: HRK | N65: Kuna
B66: 10121506 | C66: Tortas oleaginosas | D66: Torta de aceite para ganado | G66: 24 | H66: Libra teórica | M66: HTG | N66: Gourde
B67: 10121507 | C67: Forraje compuesto | G67: 25 | H67: Gramo por centímetro cuadrado | M67: HUF | N67: Florín
B68: 10121600 | C68: Alimento para pájaros y aves de corral | G68: 27 | H68: Tonelada teórica | M68: IDR | N68: Rupia
B69: 10121601 | C69: Alimento vivo para aves | G69: 28 | H69: Kilogramo por metro cuadrado | M69: ILS | N69: Nuevo Shekel Israelí
B70: 10121602 | C70: Alpiste | G70: 2A | H70: Radián por segundo | M70: INR | N70: Rupia india
B71: 10121603 | C71: Botanas o comida recreacional para aves | G71: 2B | H71: Radián por segundo cuadrado | M71: IQD | N71: Dinar iraquí
B72: 10121604 | C72: Alimento avícola | G72: 2C | H72: Roentgen | M72: IRR | N72: Rial iraní
B73: 10121700 | C73: Alimento para peces | G73: 2G | H73: Voltios CA | M73: ISK | N73: Corona islandesa
B74: 10121701 | C74: Salmuera fresca o congelada | G74: 2H | H74: Voltios CD | M74: JMD | N74: Dólar Jamaiquino
B75: 10121702 | C75: Alimento granulado para peces | G75: 2I | H75: Unidad térmica británica (tabla internacional) por hora | M75: JOD | N75: Dinar jordano
B76: 10121703 | C76: Alimento en hojuelas para peces | G76: 2J | H76: Centímetro cúbico por segundo | M76: JPY | N76: Yen
B77: 10121800 | C77: Alimento para perros y gatos | G77: 2K | H77: Pie cúbico por hora | M77: KES | N77: Chelín keniano
B78: 10121801 | C78: Comida seca para perros | G78: 2L | H78: Pie cúbico por minuto | M78: KGS | N78: Som
B79: 10121802 | C79: Comida húmeda para perros | G79: 2M | H79: Centímetro por segundo | M79: KHR | N79: Riel
B80: 10121803 | C80: Leche para perros o gatos | G80: 2N | H80: Decibel | M80: KMF | N80: Franco Comoro
B81: 10121804 | C81: Comida seca para gatos | G81: 2P | H81: Kilobyte | M81: KPW | N81: Corea del Norte ganó
B82: 10121805 | C82: Comida húmeda para gatos | G82: 2Q | H82: Kilobecquerel | M82: KRW | N82: Won
B83: 10121806 | C83: Botanas o comida recreacional para gatos o perros | G83: 2R | H83: Kilocurie | M83: KWD | N83: Dinar kuwaití
B84: 10121900 | C84: Alimento para roedores | G84: 2U | H84: Megagramo | M84: KYD | N84: Dólar de las Islas Caimán
B85: 10121901 | C85: Comida granulada para roedores | G85: 2V | H85: Megagrama por hora | M85: KZT | N85: Tenge
B86: 10122000 | C86: Alimento para reptiles | G86: 2X | H86: Metro por minuto | M86: LAK | N86: Kip
B87: 10122001 | C87: Comida granulada para reptiles | G87: 2Y | H87: Milliroentgen | M87: LBP | N87: Libra libanesa
B88: 10122002 | C88: Comida húmeda para reptiles | G88: 2Z | H88: Milivoltio | M88: LKR | N88: Rupia de Sri Lanka
B89: 10122003 | C89: Comida viva para reptiles | G89: 33 | H89: Kilopascal por grtr | M89: LRD | N89: Dólar liberiano
B90: 10122100 | C90: Comida para animales variados | D90: Comida para diversos animales | G90: 34 | H90: Kilopascal por milímetro | M90: LSL | N90: Loti
B91: 10122101 | C91: Comida para cerdos | D91: Comida para chanchos, Comida para cochinillos, Comida para cochinos, Comida para cuche, Comida para cuinos, Comida para gorrinos, Comida para lechones, Comida para marranos, Comida para porcinos, Comida para puercos, Comida para lechones | G91: 35 | H91: Milímetro por un segundo centímetro cuadrado | M91: LYD | N91: Dinar libio
B92: 10122102 | C92: Comida para visones | G92: 37 | H92: Onza por pie cuadrado | M92: MAD | N92: Dirham marroquí
B93: 10122103 | C93: Comida para monos | G93: 38 | H93: Onzas por pie cuadrado por 0,01 pulgadas | M93: MDL | N93: Leu moldavo
B94: 10122104 | C94: Comida para conejos | G94: 3B | H94: Megajoule | M94: MGA | N94: Ariary malgache
B95: 10131500 | C95: Cobertizos para animales | G95: 3C | H95: Manmonth | M95: MKD | N95: Denar
B96: 10131506 | C96: Establos para ganado | G96: 3E | H96: Libra por libra de producto | M96: MMK | N96: Kyat
B97: 10131507 | C97: Casas para mascotas domesticadas | G97: 3G | H97: Libra por pieza de producto | M97: MNT | N97: Tugrik
B98: 10131508 | C98: Camas para mascotas | G98: 3H | H98: Kilogramo por kilogramo de producto | M98: MOP | N98: Pataca
B99: 10131600 | C99: Recipientes para animales | D99: Contenedores de comida para animales | G99: 3I | H99: Kilogramo por pedazo de producto | M99: MRO | N99: Ouguiya
B100: 10131601 | C100: Jaulas o sus accesorios | G100: 40 | H100: Mililitro por segundo | M100: MUR | N100: Rupia de Mauricio
B101: 10131602 | C101: Perreras | G101: 41 | H101: Mililitro por minuto | M101: MVR | N101: Rupia
B102: 10131603 | C102: Equipaje para el transporte de animales | G102: 4B | H102: Gorra | M102: MWK | N102: Kwacha
B103: 10131604 | C103: Correas para perros | G103: 4C | H103: Centistokes | M103: MXN | N103: Peso Mexicano
B104: 10131700 | C104: Hábitat para animales | D104: Ambientes para animales | G104: 4E | H104: Veinte pack | M104: MXV | N104: México Unidad de Inversión (UDI)
B105: 10131701 | C105: Terrarios | G105: 4G | H105: Microlitro | M105: MYR | N105: Ringgit malayo
B106: 10131702 | C106: Acuarios | G106: 4H | H106: Micra | M106: MZN | N106: Mozambique Metical
B107: 10141500 | C107: Talabartería | D107: Guarniciones para caballerías | G107: 4K | H107: Miliamperio | M107: NAD | N107: Dólar de Namibia
B108: 10141501 | C108: Sillas de montar | G108: 4L | H108: Megabyte | M108: NGN | N108: Naira
B109: 10141502 | C109: Fustas y látigos | G109: 4M | H109: Miligramo por hora | M109: NIO | N109: Córdoba Oro
B110: 10141503 | C110: Herraduras para caballo | G110: 4N | H110: Megabequerel | M110: NOK | N110: Corona noruega
B111: 10141504 | C111: Herraduras para mula | G111: 4O | H111: Microfaradio | M111: NPR | N111: Rupia nepalí
B112: 10141505 | C112: Sillín o pelero | G112: 4P | H112: Newton por metro | M112: NZD | N112: Dólar de Nueva Zelanda
B113: 10141600 | C113: Arneses | G113: 4Q | H113: Onza pulgada | M113: OMR | N113: Rial omaní
B114: 10141601 | C114: Bridas | D114: Correas para caballos | G114: 4R | H114: Onza pie | M114: PAB | N114: Balboa
B115: 10141602 | C115: Yugos | G115: 4T | H115: Picofaradio | M115: PEN | N115: Nuevo Sol
B116: 10141603 | C116: Bocados para caballos | D116: Embocaduras para caballo | G116: 4U | H116: Libra por hora | M116: PGK | N116: Kina
B117: 10141604 | C117: Riendas | D117: Correas | G117: 4W | H117: Tonelada (EUA) por hora | M117: PHP | N117: Peso filipino
B118: 10141605 | C118: Estribos | G118: 4X | H118: Kilolitro por hora | M118: PKR | N118: Rupia de Pakistán
B119: 10141606 | C119: Correas o traíllas | G119: 56 | H119: Sitas | M119: PLN | N119: Zloty
B120: 10141607 | C120: Arneses de cuello para animales | G120: 57 | H120: Malla | M120: PYG | N120: Guaraní
B121: 10141608 | C121: Arneses o sus accesorios | G121: 58 | H121: kilogramo neto | M121: QAR | N121: Qatar Rial
B122: 10141609 | C122: Sujetadores | G122: 59 | H122: Parte por millón | M122: RON | N122: Leu rumano
B123: 10141610 | C123: Bozales | G123: 5A | H123: Barril por minuto | M123: RSD | N123: Dinar serbio
B124: 10141611 | C124: Soportes para correas | G124: 5B | H124: Batch | M124: RUB | N124: Rublo ruso
B125: 10151500 | C125: Semillas y plántulas vegetales | D125: Semillas y vástagos vegetales | G125: 5C | H125: Galón (US) por mil | M125: RWF | N125: Franco ruandés
B126: 10151501 | C126: Semillas o plántulas de fríjol | D126: Semillas o vástago primario de fríjol, Semillas o vástago primario de fríjol blanco, Semillas o vástago primario de fríjol negro, Semillas o vástago primario de fríjol rojo adzuki | G126: 5E | H126: Mmscf/day | M126: SAR | N126: Riyal saudí
B127: 10151502 | C127: Semillas o plántulas de zanahoria | D127: Semillas o vástago primario de zanahoria | G127: 5F | H127: Libra por mil | M127: SBD | N127: Dólar de las Islas Salomón
B128: 10151503 | C128: Semillas o plántulas de apio | D128: Semillas o vástago primario de apio | G128: 5G | H128: bomba | M128: SCR | N128: Rupia de Seychelles
B129: 10151504 | C129: Semillas o plántulas de chiles | D129: Semillas o vástago primario de chiles | G129: 5H | H129: Escenario | M129: SDG | N129: Libra sudanesa
B130: 10151505 | C130: Semillas o plántulas de calabacín | D130: Semillas o vástago primario de calabacín | G130: 5I | H130: Pies cúbicos estándar | M130: SEK | N130: Corona sueca
B131: 10151506 | C131: Semillas o plántulas de alverja | D131: Semillas o vástago primario de chícharo, Semillas o vástago primario de guisante | G131: 5J | H131: Caballos de potencia hidráulica | M131: SGD | N131: Dolar De Singapur
B132: 10151507 | C132: Semillas o plántulas de pepino cohombro | D132: Semillas o vástago primario de pepino cohombro | G132: 5K | H132: Contar por minuto | M132: SHP | N132: Libra de Santa Helena
B133: 10151508 | C133: Semillas o plántulas de berenjena | D133: Semillas o vástago primario de berenjena | G133: 5P | H133: Nivel sísmico | M133: SLL | N133: Leona
B134: 10151509 | C134: Semillas o plántulas de endivias | D134: Semillas o vástago primario de endivias | G134: 5Q | H134: Línea sísmica | M134: SOS | N134: Chelín somalí
B135: 10151510 | C135: Semillas o plántulas de ajo | D135: Semillas o vástago primario de ajo | G135: 60 | H135: Tanto por ciento en peso | M135: SRD | N135: Dólar de Suriname
B136: 10151511 | C136: Semillas o plántulas de puerro | D136: Semillas o vástago primario de puerro | G136: 61 | H136: Parte por mil millones (EUA) | M136: SSP | N136: Libra sudanesa Sur
B137: 10151512 | C137: Semillas o plántulas de lechuga | D137: Semillas o vástago primario de lechuga | G137: 74 | H137: Milipascal | M137: STD | N137: Dobra
B138: 10151513 | C138: Semillas o plántulas de maíz | D138: Semillas o vástago primario de maíz | G138: 77 | H138: Mili-pulgada | M138: SVC | N138: Colon El Salvador
B139: 10151514 | C139: Semillas o plántulas de melón | D139: Semillas o vástago primario de melón | G139: 80 | H139: Libra por pulgada cuadrado absoluta | M139: SYP | N139: Libra Siria
B140: 10151515 | C140: Semillas o plántulas cebolla | D140: Semillas o vástago primario de cebolla | G140: 81 | H140: Henry | M140: SZL | N140: Lilangeni
B141: 10151516 | C141: Semillas o plántulas de soya | D141: Semillas o vástago primario de soya | G141: 85 | H141: Pie libra-fuerza | M141: THB | N141: Baht
B142: 10151517 | C142: Semillas o plántulas de espinaca | D142: Semillas o vástago primario de espinaca | G142: 87 | H142: Libra por pie cúbico | M142: TJS | N142: Somoni
B143: 10151518 | C143: Semillas o plántulas de tomate | D143: Semillas o vástago primario de tomate | G143: 89 | H143: Poise | M143: TMT | N143: Turkmenistán nuevo manat
B144: 10151519 | C144: Semillas o plántulas de nabo | D144: Semillas o vástago primario de nabo | G144: 91 | H144: Stokes | M144: TND | N144: Dinar tunecino
B145: 10151520 | C145: Semillas o plántulas de acelga | D145: Semillas o vástago primario de acelga | G145: A1 | H145: 15 ° C calorías | M145: TOP | N145: Pa'anga
B146: 10151521 | C146: Semillas o plántulas de pimiento morrón | D146: Semillas o vástago primario de pimiento morrón | G146: A10 | H146: Amperio por metro cuadrado por joule segundo | M146: TRY | N146: Lira turca
B147: 10151522 | C147: Semillas o plántulas de remolacha | D147: Semillas o vástago primario de betabel | G147: A11 | H147: Ángstrom | M147: TTD | N147: Dólar de Trinidad y Tobago
B148: 10151523 | C148: Semillas o plántulas de coliflor | D148: Semillas o vástago primario de coliflor | G148: A12 | H148: Unidad astronómica | M148: TWD | N148: Nuevo dólar de Taiwán
B149: 10151524 | C149: Semillas o plántulas de perejil | D149: Semillas o vástago primario de perejil | G149: A13 | H149: Attojoule | M149: TZS | N149: Shilling tanzano
B150: 10151525 | C150: Semillas o plántulas de brócoli | D150: Semillas o vástago primario de brócoli | G150: A14 | H150: Barn | M150: UAH | N150: Hryvnia
B151: 10151526 | C151: Semillas o plántulas de repollo | D151: Semillas o vástago primario de col | G151: A15 | H151: Barn por electrovoltio | M151: UGX | N151: Shilling de Uganda
B152: 10151527 | C152: Semillas o plántulas de papa | D152: Semillas o vástago primario de patata | G152: A16 | H152: Barn por electrovoltio | M152: USD | N152: Dolar americano
B153: 10151528 | C153: Semillas o plántulas de batata | D153: Semillas o vástago primario de camote | G153: A17 | H153: Barn por esteroradian | M153: USN | N153: Dólar estadounidense (día siguiente)
B154: 10151529 | C154: Semillas o plántulas de calabaza | D154: Semillas o vástago primario de calabaza | G154: A18 | H154: Becquerel por kilogramo | M154: UYI | N154: Peso Uruguay en Unidades Indexadas (URUIURUI)
B155: 10151530 | C155: Semillas o plántulas de rábano | D155: Semillas o vástago primario de rabanito, Semillas o vástago primario de rábano | G155: A19 | H155: Becquerel por metro cúbico | M155: UYU | N155: Peso Uruguayo
B156: 10151531 | C156: Semillas o plántulas de repollitos de bruselas | D156: Semillas o vástago primario de col de Bruselas | G156: A2 | H156: Amperio por centímetro | M156: UZS | N156: Uzbekistán Sum
B157: 10151532 | C157: Semillas o plántulas de ahuyama | D157: Semillas o vástago primario de calabaza de castilla | G157: A20 | H157: Unidad térmica británica (tabla internacional) por segundo pie cuadrado grado rankine. | M157: VEF | N157: Bolívar
B158: 10151533 | C158: Semillas o plántulas de okra | D158: Semillas o vástago primario de okra | G158: A21 | H158: Unidad térmica británica (tabla internacional) por libra grado rankine | M158: VND | N158: Dong
B159: 10151534 | C159: Semillas o plántulas de melón cantalupo | D159: Semillas o vástago primario de melón cantalupo | G159: A22 | H159: Unidad térmica británica (tabla internacional) por segundo pie grado rankine | M159: VUV | N159: Vatu
B160: 10151535 | C160: Semillas o plántulas de maní | D160: Semillas o vástago primario de cacahuate | G160: A23 | H160: Unidad térmica británica (tabla internacional) por hora pie cuadrado grado rankine. | M160: WST | N160: Tala
B161: 10151536 | C161: Semillas o plántulas de caigua | D161: Semillas o vástago primario de caigua | G161: A24 | H161: Candela por metro cuadrado | M161: XAF | N161: Franco CFA BEAC
B162: 10151537 | C162: Semillas o plántulas de espárrago | D162: Semillas o vástago primario de espárrago | G162: A25 | H162: Caballo de vapor | M162: XAG | N162: Plata
B163: 10151538 | C163: Semillas o plántulas de garbanzo | D163: Semillas o vástago primario de garbanzo | G163: A26 | H163: Culombio metro | M163: XAU | N163: Oro
B164: 10151539 | C164: Semillas o plántulas de haba | D164: Semillas o vástago primario de haba | G164: A27 | H164: Culombio metro cuadrado por voltio | M164: XBA | N164: Unidad de Mercados de Bonos Unidad Europea Composite (EURCO)
B165: 10151600 | C165: Semillas de cereales | G165: A28 | H165: Culombio por centímetro cúbico | M165: XBB | N165: Unidad Monetaria de Bonos de Mercados Unidad Europea (UEM-6)
B166: 10151601 | C166: Semillas de trigo | G166: A29 | H166: Culombio por metro cúbico | M166: XBC | N166: Mercados de Bonos Unidad Europea unidad de cuenta a 9 (UCE-9)
B167: 10151602 | C167: Semillas de canola | D167: Semillas de colza | G167: A3 | H167: Amperio por milímetro | M167: XBD | N167: Mercados de Bonos Unidad Europea unidad de cuenta a 17 (UCE-17)
B168: 10151603 | C168: Semillas de cebada | G168: A30 | H168: Culombio por milímetro cúbico | M168: XCD | N168: Dólar del Caribe Oriental
B169: 10151604 | C169: Semillas de mijo | G169: A31 | H169: Culombio por kilogramo-segundo | M169: XDR | N169: DEG (Derechos Especiales de Giro)
B170: 10151605 | C170: Semillas de avena | G170: A32 | H170: Culombio por Mol | M170: XOF | N170: Franco CFA BCEAO
B171: 10151606 | C171: Semillas de ajonjolí | D171: Semillas de sésamo | G171: A33 | H171: Culombio por centímetro cuadrado | M171: XPD | N171: Paladio
B172: 10151607 | C172: Semillas de linaza | D172: Semillas de lino | G172: A34 | H172: Culombio por metro cuadrado | M172: XPF | N172: Franco CFP
B173: 10151608 | C173: Semillas de aceite de ricino | D173: Semillas de ricino | G173: A35 | H173: Culombio por milímetro cuadrado | M173: XPT | N173: Platino
B174: 10151609 | C174: Semillas de maíz | G174: A36 | H174: Centímetro cúbico por Mol | M174: XSU | N174: Sucre
B175: 10151610 | C175: Semillas de centeno | G175: A37 | H175: Decímetro cuadrado por Mol | M175: XTS | N175: Códigos reservados específicamente para propósitos de prueba
B176: 10151611 | C176: Semillas de sorgo | G176: A38 | H176: Cubic pooulo p | M176: XUA | N176: Unidad ADB de Cuenta
B177: 10151612 | C177: Semillas o plántulas de kiwicha | D177: Semillas o vástagos de amaranto | G177: A39 | H177: Metro cúbico por kilogramo | M177: XXX | N177: Los códigos asignados para las transacciones en que intervenga ninguna moneda
B178: 10151613 | C178: Semillas o plántulas de quínoa | D178: Semillas o vástagos de quinua | G178: A4 | H178: Amperio por centímetro cuadrado | M178: YER | N178: Rial yemení
B179: 10151700 | C179: Semillas y plántulas de hierba y forraje | D179: Semillas y vástagos de hierba y forraje | G179: A40 | H179: Metro cúbico por Mol | M179: ZAR | N179: Rand
B180: 10151701 | C180: Semillas o plántulas de arroz | G180: A41 | H180: Amperio por metro cuadrado | M180: ZMW | N180: Kwacha zambiano
B181: 10151702 | C181: Semillas o plántulas de trébol | G181: A42 | H181: Curie por kilogramo | M181: ZWL | N181: Zimbabwe Dólar
B182: 10151703 | C182: Semillas o plántulas de alfalfa | G182: A43 | H182: Tonelaje de peso muerto
B183: 10151704 | C183: Semillas o plántulas de pasto | D183: Semillas o vástagos para césped | G183: A44 | H183: Decalitro
B184: 10151705 | C184: Semillas o plántulas de veza (gachas / guija) | G184: A45 | H184: Decámetro
B185: 10151706 | C185: Semillas o plántulas de guar | G185: A47 | H185: Decitex
B186: 10151800 | C186: Semillas y plántulas de especias | D186: Semillas y vástagos de especias | G186: A48 | H186: Grado rankine
B187: 10151801 | C187: Semillas o plántulas de pimienta | G187: A49 | H187: Negador
B188: 10151802 | C188: Semillas o plántulas de vainilla | G188: A5 | H188: Amperio metro cuadrado
B189: 10151803 | C189: Semillas o plántulas de canela | G189: A50 | H189: Dina segundo por centímetro cúbico
B190: 10151804 | C190: Semillas o plántulas de clavo de olor | G190: A51 | H190: Dina segundo por centímetro
B191: 10151805 | C191: Semillas o plántulas de cilantro | G191: A52 | H191: Dina segundo por centímetro a la quinta potencia
B192: 10151806 | C192: Semillas o plántulas de jengibre | G192: A53 | H192: Electronvoltio
B193: 10151807 | C193: Semillas o plántulas de azafrán | G193: A54 | H193: Electronvoltio por metro
B194: 10151808 | C194: Semillas o plántulas de tomillo | G194: A55 | H194: Electronvoltio por metro cuadrado
B195: 10151809 | C195: Semillas o plántulas de curry | D195: Semillas o vástagos de curri | G195: A56 | H195: Electronvoltio metro cuadrado por kilogramo
B196: 10151810 | C196: Semillas o plántulas de mostaza | G196: A57 | H196: Ergio
B197: 10151811 | C197: Semillas o plántulas de ginseng | G197: A58 | H197: Erg por centímetro
B198: 10151812 | C198: Semillas o plántulas de champiñones | G198: A59 | H198: La cobertura de nubes 8-parte
B199: 10151813 | C199: Semillas o plántulas de sacha inchi | G199: A6 | H199: Amperio por metro cuadrado Kelvin cuadrado
B200: 10151814 | C200: Semillas o plántulas de achiote | G200: A60 | H200: Erg por centímetro cúbico
B201: 10151815 | C201: Semillas o plántulas de kudzu | G201: A61 | H201: Erg por gramo
... 4270 more rows

Sheet c_Estado (hidden)
A1: Catálogo de estados.
A2: Versión CFDI | B2: Versión catálogo | C2: Revisión catálogo | D2: Fecha publicación de catálogo | E2: Fecha inicio de vigencia del catálogo | F2: Fecha fin de vigencia del catálogo
A3: 4 | B3: 1 | C3: 0 | D3: 0 | E3: 2022-01-01
A5: c_Estado | B5: c_Pais | C5: Nombre del estado
A6: AGU | B6: MEX | C6: Aguascalientes
A7: BCN | B7: MEX | C7: Baja California
A8: BCS | B8: MEX | C8: Baja California Sur
A9: CAM | B9: MEX | C9: Campeche
A10: CHP | B10: MEX | C10: Chiapas
A11: CHH | B11: MEX | C11: Chihuahua
A12: COA | B12: MEX | C12: Coahuila
A13: COL | B13: MEX | C13: Colima
A14: CMX | B14: MEX | C14: Ciudad de México
A15: DUR | B15: MEX | C15: Durango
A16: GUA | B16: MEX | C16: Guanajuato
A17: GRO | B17: MEX | C17: Guerrero
A18: HID | B18: MEX | C18: Hidalgo
A19: JAL | B19: MEX | C19: Jalisco
A20: MEX | B20: MEX | C20: Estado de México
A21: MIC | B21: MEX | C21: Michoacán
A22: MOR | B22: MEX | C22: Morelos
A23: NAY | B23: MEX | C23: Nayarit
A24: NLE | B24: MEX | C24: Nuevo León
A25: OAX | B25: MEX | C25: Oaxaca
A26: PUE | B26: MEX | C26: Puebla
A27: QUE | B27: MEX | C27: Querétaro
A28: ROO | B28: MEX | C28: Quintana Roo
A29: SLP | B29: MEX | C29: San Luis Potosí
A30: SIN | B30: MEX | C30: Sinaloa
A31: SON | B31: MEX | C31: Sonora
A32: TAB | B32: MEX | C32: Tabasco
A33: TAM | B33: MEX | C33: Tamaulipas
A34: TLA | B34: MEX | C34: Tlaxcala
A35: VER | B35: MEX | C35: Veracruz
A36: YUC | B36: MEX | C36: Yucatán
A37: ZAC | B37: MEX | C37: Zacatecas
A38: AL | B38: USA | C38: Alabama
A39: AK | B39: USA | C39: Alaska
A40: AZ | B40: USA | C40: Arizona
A41: AR | B41: USA | C41: Arkansas
A42: CA | B42: USA | C42: California
A43: NC | B43: USA | C43: Carolina del Norte
A44: SC | B44: USA | C44: Carolina del Sur
A45: CO | B45: USA | C45: Colorado
A46: CT | B46: USA | C46: Connecticut
A47: ND | B47: USA | C47: Dakota del Norte
A48: SD | B48: USA | C48: Dakota del Sur
A49: DE | B49: USA | C49: Delaware
A50: FL | B50: USA | C50: Florida
A51: GA | B51: USA | C51: Georgia
A52: HI | B52: USA | C52: Hawái
A53: ID | B53: USA | C53: Idaho
A54: IL | B54: USA | C54: Illinois
A55: IN | B55: USA | C55: Indiana
A56: IA | B56: USA | C56: Iowa
A57: KS | B57: USA | C57: Kansas
A58: KY | B58: USA | C58: Kentucky
A59: LA | B59: USA | C59: Luisiana
A60: ME | B60: USA | C60: Maine
A61: MD | B61: USA | C61: Maryland
A62: MA | B62: USA | C62: Massachusetts
A63: MI | B63: USA | C63: Míchigan
A64: MN | B64: USA | C64: Minnesota
A65: MS | B65: USA | C65: Misisipi
A66: MO | B66: USA | C66: Misuri
A67: MT | B67: USA | C67: Montana
A68: NE | B68: USA | C68: Nebraska
A69: NV | B69: USA | C69: Nevada
A70: NJ | B70: USA | C70: Nueva Jersey
A71: NY | B71: USA | C71: Nueva York
A72: NH | B72: USA | C72: Nuevo Hampshire
A73: NM | B73: USA | C73: Nuevo México
A74: OH | B74: USA | C74: Ohio
A75: OK | B75: USA | C75: Oklahoma
A76: OR | B76: USA | C76: Oregón
A77: PA | B77: USA | C77: Pensilvania
A78: RI | B78: USA | C78: Rhode Island
A79: TN | B79: USA | C79: Tennessee
A80: TX | B80: USA | C80: Texas
A81: UT | B81: USA | C81: Utah
A82: VT | B82: USA | C82: Vermont
A83: VA | B83: USA | C83: Virginia
A84: WV | B84: USA | C84: Virginia Occidental
A85: WA | B85: USA | C85: Washington
A86: WI | B86: USA | C86: Wisconsin
A87: WY | B87: USA | C87: Wyoming
A88: ON | B88: CAN | C88: Ontario
A89: QC | B89: CAN | C89: Quebec
A90: NS | B90: CAN | C90: Nueva Escocia
A91: NB | B91: CAN | C91: Nuevo Brunswick
A92: MB | B92: CAN | C92: Manitoba
A93: BC | B93: CAN | C93: Columbia Británica
A94: PE | B94: CAN | C94: Isla del Príncipe Eduardo
A95: SK | B95: CAN | C95: Saskatchewan
A96: AB | B96: CAN | C96: Alberta
A97: NL | B97: CAN | C97: Terranova y Labrador
A98: NT | B98: CAN | C98: Territorios del Noroeste
A99: YT | B99: CAN | C99: Yukón
A100: UN | B100: CAN | C100: Nunavut
